{"text_format":"3","workbook":"xlsx","n_sheets":1,"sheets":["1包"],"not_rendered":{"defined_names":1},"read":"whole","date_system":"1900"}

{"sheet":"1包","index":0,"n_rows":105,"n_cols":12,"rows_kept":105,"merged":[[0,0,0,11],[104,0,104,8]]}
["合肥市包河区BH202437号地块装饰固定家具、木饰面、木门采购及安装项目01包"]
["序号","楼栋","工程名称","序号","项目编码","清单(子目)名称","总包清单特征（仅供报价参考）","固定家具、木饰面、木门清单特征描述\n（报价特征范围）","单位","工程量","单价（元）","合价（元）"]
[1,"3#","工程名称：3#-公区","25","011207001004","墙面装饰板","1. 部位：前场电梯厅等\n2. 龙骨材料种类、规格：热镀锌钢龙骨（不分规格型号，投标人综合考虑）\n3. 基层材料种类、规格：12mm阻燃夹板，局部9mm阻燃夹板或双层\n4. 面层材料品种、规格、颜色：12mm深橡木饰面（WD-B01），局部凹槽工艺及灯槽成型等综合考虑\n5. 防护材料种类：所有装修用木基层均应进行防火、防腐处理\n6. 施工时面层颜色、样式由甲方和设计单位确认选样，投标人综合考虑报价，加工、切割、折边、损耗等不另计，中标后综合单价不予调整\n7. 未尽事宜详见设计图纸、图集、设计补充说明、招标文件、政府相关文件及规范等其它资料，满足验收要求","1. 部位：前场电梯厅等\n4. 面层材料品种、规格、颜色：12mm深橡木饰面（WD-B01），局部凹槽工艺及灯槽成型等综合考虑\n5. 防护材料种类：所有装修用木基层均应进行防火、防腐处理\n6. 施工时面层颜色、样式由甲方和设计单位确认选样，投标人综合考虑报价，加工、切割、折边、损耗等不另计，中标后综合单价不予调整\n7. 未尽事宜详见设计图纸、图集、设计补充说明、招标文件、政府相关文件及规范等其它资料，满足验收要求","m2",16.99,null,{"$f":"J3*K3","v":{"v":0,"d":"0.00"}}]
[2,"3#","工程名称：3#-公区","26","011207001005","墙面装饰板","1. 部位：前场电梯厅等\n2. 龙骨材料种类、规格：轻钢龙骨，规格尺寸满足现场和规范要求\n3. 基层材料种类、规格：12mm阻燃夹板\n4. 面层材料品种、规格、颜色：12mm深橡木饰面（WD-B01），局部凹槽工艺及灯槽成型等综合考虑\n5. 防护材料种类：所有装修用木基层均应进行防火、防腐处理\n6. 施工时面层颜色、样式由甲方和设计单位确认选样，投标人综合考虑报价，加工、切割、折边、损耗等不另计，中标后综合单价不予调整\n7. 未尽事宜详见设计图纸、图集、设计补充说明、招标文件、政府相关文件及规范等其它资料，满足验收要求","1. 部位：前场电梯厅等\n4. 面层材料品种、规格、颜色：12mm深橡木饰面（WD-B01），局部凹槽工艺及灯槽成型等综合考虑\n5. 防护材料种类：所有装修用木基层均应进行防火、防腐处理\n6. 施工时面层颜色、样式由甲方和设计单位确认选样，投标人综合考虑报价，加工、切割、折边、损耗等不另计，中标后综合单价不予调整\n7. 未尽事宜详见设计图纸、图集、设计补充说明、招标文件、政府相关文件及规范等其它资料，满足验收要求","m2",2.05,null,{"v":0,"d":"0.00"}]
[3,"3#","工程名称：3#-公区","27","011207001006","墙面装饰板","1. 部位：前场电梯厅等\n2. 龙骨材料种类、规格：热镀锌钢龙骨（不分规格型号，投标人综合考虑）\n3. 基层材料种类、规格：12mm阻燃夹板\n4. 面层材料品种、规格、颜色：12mm弧形深橡木饰面（WD-B01），灯槽成型等综合考虑\n5. 防护材料种类：所有装修用木基层均应进行防火、防腐处理\n6. 施工时面层颜色、样式由甲方和设计单位确认选样，投标人综合考虑报价，加工、切割、折边、损耗等不另计，中标后综合单价不予调整\n7. 未尽事宜详见设计图纸、图集、设计补充说明、招标文件、政府相关文件及规范等其它资料，满足验收要求","1. 部位：前场电梯厅等\n4. 面层材料品种、规格、颜色：12mm弧形深橡木饰面（WD-B01），灯槽成型等综合考虑\n5. 防护材料种类：所有装修用木基层均应进行防火、防腐处理\n6. 施工时面层颜色、样式由甲方和设计单位确认选样，投标人综合考虑报价，加工、切割、折边、损耗等不另计，中标后综合单价不予调整\n7. 未尽事宜详见设计图纸、图集、设计补充说明、招标文件、政府相关文件及规范等其它资料，满足验收要求","m2",7.38,null,{"v":0,"d":"0.00"}]
[4,"3#","工程名称：3#-公区","28","011207001007","墙面装饰板","1. 部位：前场电梯厅等\n2. 龙骨材料种类、规格：轻钢龙骨，规格尺寸满足现场和规范要求\n3. 基层材料种类、规格：12mm阻燃夹板\n4. 面层材料品种、规格、颜色：12mm中国红手扫漆饰面（WD-B05）\n5. 防护材料种类：所有装修用木基层均应进行防火、防腐处理\n6. 施工时面层颜色、样式由甲方和设计单位确认选样，投标人综合考虑报价，加工、切割、折边、损耗等不另计，中标后综合单价不予调整\n7. 未尽事宜详见设计图纸、图集、设计补充说明、招标文件、政府相关文件及规范等其它资料，满足验收要求","1. 部位：前场电梯厅等\n4. 面层材料品种、规格、颜色：12mm中国红手扫漆饰面（WD-B05）\n5. 防护材料种类：所有装修用木基层均应进行防火、防腐处理\n6. 施工时面层颜色、样式由甲方和设计单位确认选样，投标人综合考虑报价，加工、切割、折边、损耗等不另计，中标后综合单价不予调整\n7. 未尽事宜详见设计图纸、图集、设计补充说明、招标文件、政府相关文件及规范等其它资料，满足验收要求","m2",5.63,null,{"v":0,"d":"0.00"}]
[5,"3#","工程名称：3#-公区","29","011207001008","墙面装饰板","1. 部位：前场电梯厅等\n2. 龙骨材料种类、规格：轻钢龙骨，规格尺寸满足现场和规范要求\n3. 基层材料种类、规格：12mm阻燃夹板\n4. 面层材料品种、规格、颜色：实木线条黑色手扫漆木饰面（WD-B05A）\n5. 防护材料种类：所有装修用木基层均应进行防火、防腐处理\n6. 施工时面层颜色、样式由甲方和设计单位确认选样，投标人综合考虑报价，加工、切割、折边、损耗等不另计，中标后综合单价不予调整\n7. 未尽事宜详见设计图纸、图集、设计补充说明、招标文件、政府相关文件及规范等其它资料，满足验收要求","1. 部位：前场电梯厅等\n4. 面层材料品种、规格、颜色：实木线条黑色手扫漆木饰面（WD-B05A）\n5. 防护材料种类：所有装修用木基层均应进行防火、防腐处理\n6. 施工时面层颜色、样式由甲方和设计单位确认选样，投标人综合考虑报价，加工、切割、折边、损耗等不另计，中标后综合单价不予调整\n7. 未尽事宜详见设计图纸、图集、设计补充说明、招标文件、政府相关文件及规范等其它资料，满足验收要求","m2",{"v":3.2,"d":"3.20"},null,{"v":0,"d":"0.00"}]
[6,"3#","工程名称：3#-公区","30","011207001009","墙面装饰板","1. 部位：前场电梯厅等\n2. 龙骨材料种类、规格：轻钢龙骨，规格尺寸满足现场和规范要求\n3. 基层材料种类、规格：12mm阻燃夹板\n4. 面层材料品种、规格、颜色：12mm黑色手扫漆饰面（WD-B05A）\n5. 防护材料种类：所有装修用木基层均应进行防火、防腐处理\n6. 施工时面层颜色、样式由甲方和设计单位确认选样，投标人综合考虑报价，加工、切割、折边、损耗等不另计，中标后综合单价不予调整\n7. 未尽事宜详见设计图纸、图集、设计补充说明、招标文件、政府相关文件及规范等其它资料，满足验收要求","1. 部位：前场电梯厅等\n4. 面层材料品种、规格、颜色：12mm黑色手扫漆饰面（WD-B05A）\n5. 防护材料种类：所有装修用木基层均应进行防火、防腐处理\n6. 施工时面层颜色、样式由甲方和设计单位确认选样，投标人综合考虑报价，加工、切割、折边、损耗等不另计，中标后综合单价不予调整\n7. 未尽事宜详见设计图纸、图集、设计补充说明、招标文件、政府相关文件及规范等其它资料，满足验收要求","m2",0.38,null,{"v":0,"d":"0.00"}]
[7,"3#","工程名称：3#-公区","31","011207001010","墙面装饰板","1. 部位：公共走道等\n2. 龙骨材料种类、规格：轻钢龙骨，规格尺寸满足现场和规范要求\n3. 基层材料种类、规格：双层12mm阻燃夹板\n4. 面层材料品种、规格、颜色：12mm暖白色喷漆木饰面（WD-B06）\n5. 防护材料种类：所有装修用木基层均应进行防火、防腐处理\n6. 施工时面层颜色、样式由甲方和设计单位确认选样，投标人综合考虑报价，加工、切割、折边、损耗等不另计，中标后综合单价不予调整\n7. 未尽事宜详见设计图纸、图集、设计补充说明、招标文件、政府相关文件及规范等其它资料，满足验收要求","1. 部位：公共走道等\n4. 面层材料品种、规格、颜色：12mm暖白色喷漆木饰面（WD-B06）\n5. 防护材料种类：所有装修用木基层均应进行防火、防腐处理\n6. 施工时面层颜色、样式由甲方和设计单位确认选样，投标人综合考虑报价，加工、切割、折边、损耗等不另计，中标后综合单价不予调整\n7. 未尽事宜详见设计图纸、图集、设计补充说明、招标文件、政府相关文件及规范等其它资料，满足验收要求","m2",59.33,null,{"v":0,"d":"0.00"}]
[8,"3#","工程名称：3#-公区","32","011207001011","墙面装饰板","1. 部位：公共走道等\n2. 龙骨材料种类、规格：轻钢龙骨，规格尺寸满足现场和规范要求\n3. 基层材料种类、规格：双层12mm阻燃夹板\n4. 面层材料品种、规格、颜色：12mm暖白色喷漆木饰面（WD-B06）,20*20mm搂槽\n5. 防护材料种类：所有装修用木基层均应进行防火、防腐处理\n6. 施工时面层颜色、样式由甲方和设计单位确认选样，投标人综合考虑报价，加工、切割、折边、损耗等不另计，中标后综合单价不予调整\n7. 未尽事宜详见设计图纸、图集、设计补充说明、招标文件、政府相关文件及规范等其它资料，满足验收要求","1. 部位：公共走道等\n4. 面层材料品种、规格、颜色：12mm暖白色喷漆木饰面（WD-B06）,20*20mm搂槽\n5. 防护材料种类：所有装修用木基层均应进行防火、防腐处理\n6. 施工时面层颜色、样式由甲方和设计单位确认选样，投标人综合考虑报价，加工、切割、折边、损耗等不另计，中标后综合单价不予调整\n7. 未尽事宜详见设计图纸、图集、设计补充说明、招标文件、政府相关文件及规范等其它资料，满足验收要求","m2",21.48,null,{"v":0,"d":"0.00"}]
[9,"3#","工程名称：3#-公区","65","WB010801004002","木质门","1.工程部位：接待区、公共走道等\n2.门扇龙骨、基层材质种类、规格：成名门芯板+30mm细木工板+四周30*30mm热镀锌方通+12mm阻燃夹板+12mm雪弗板\n3.门套材料种类、规格：15mm阻燃夹板+9mm阻燃夹板+橡木饰面（WD-B01）\n4.面层材料品种、规格、颜色：正面皮革硬包（UP-B02）1.2mm仿铜不锈钢包边（MT-B04）+10mm仿铜不锈钢嵌条（MT-B04），背面橡木饰面（WD-B01）\n5.五金品种、规格：包含但不限于成品金属门把手(选样)、成品五金暗铰链(选型一侧三副)、消音胶条等完成此项工作的全部五金配件\n6.施工时面层颜色、样式由甲方和设计单位确认选样，投标人综合考虑报价，加工、损耗等不另计，中标后综合单价不予调整\n7.未尽事宜详见设计图纸、图集、设计补充说明、招标文件、政府相关文件及规范等其它资料，满足验收要求","1.工程部位：接待区、公共走道等\n2.门扇龙骨、基层材质种类、规格：成名门芯板+30mm细木工板+四周30*30mm热镀锌方通+12mm阻燃夹板+12mm雪弗板\n3.门套材料种类、规格：橡木饰面（WD-B01）\n4.面层材料品种、规格、颜色：正面皮革硬包（UP-B02）1.2mm仿铜不锈钢包边（MT-B04）+10mm仿铜不锈钢嵌条（MT-B04），背面橡木饰面（WD-B01）\n5.五金品种、规格：包含但不限于成品金属门把手(选样)、成品五金暗铰链(选型一侧三副)、消音胶条等完成此项工作的全部五金配件\n6.施工时面层颜色、样式由甲方和设计单位确认选样，投标人综合考虑报价，加工、损耗等不另计，中标后综合单价不予调整\n7.未尽事宜详见设计图纸、图集、设计补充说明、招标文件、政府相关文件及规范等其它资料，满足验收要求","m2",3.64,null,{"v":0,"d":"0.00"}]
[10,"3#","工程名称：3#-公区","66","WB011501001001","服务台","1. 部位：接待区等\n2. 台柜规格：长4800*高1100*宽1000mm\n3. 龙骨材料种类、规格：热镀锌钢龙骨（不分规格型号，投标人综合考虑）\n4. 基层材料种类、规格：12mm厚阻燃夹板，局部双层15mm厚阻燃夹板\n5. 面层材料品种、规格、颜色：25mm瑞吉黑大理石接待台(ST-B08)，局部位置为25mm巴洛克紫大理石(ST-B07)，深橡木饰面柜体（WD-B01）局部10*10凹槽、灯槽成型，50mm高仿铜覆膜不锈钢踢脚线\n6. 五金种类、规格：含所有配套不锈钢五金件\n7. 施工时面层颜色、样式由甲方和设计单位确认选样，加工、排版损耗等不另计，投标人综合考虑报价，中标后综合单价不予调整\n8. 未尽事宜详见设计图纸、图集、设计补充说明、招标文件、政府相关文件及规范等其它资料，满足验收要求","1. 部位：接待区等\n2. 台柜规格：长4800*高1100*宽1000mm\n5. 面层材料品种、规格、颜色：深橡木饰面柜体（WD-B01）局部10*10凹槽、灯槽成型\n6. 五金种类、规格：含所有配套不锈钢五金件\n7. 施工时面层颜色、样式由甲方和设计单位确认选样，加工、排版损耗等不另计，投标人综合考虑报价，中标后综合单价不予调整\n8. 未尽事宜详见设计图纸、图集、设计补充说明、招标文件、政府相关文件及规范等其它资料，满足验收要求","m",{"v":4.8,"d":"4.80"},null,{"v":0,"d":"0.00"}]
[11,"3#","工程名称：3#-公区","110","011502002001","木质装饰线","1. 部位：会见室等\n2. 龙骨材料种类、规格：轻钢龙骨，规格尺寸满足现场和规范要求，内塞50mm厚岩棉(容重80kg/m3)\n3. 基层材料种类、规格：双层12mm阻燃夹板\n4. 面层材料品种、规格、颜色：50mm宽暖白色手扫漆饰面线条（WD-B04)\n5. 防护材料种类：所有装修用木基层均应进行防火、防腐处理\n6. 施工时面层颜色、样式由甲方和设计单位确认选样，投标人综合考虑报价，加工、切割、折边、损耗等不另计，中标后综合单价不予调整\n7. 未尽事宜详见设计图纸、图集、设计补充说明、招标文件、政府相关文件及规范等其它资料，满足验收要求","1. 部位：会见室等\n4. 面层材料品种、规格、颜色：50mm宽暖白色手扫漆饰面线条（WD-B04)\n5. 防护材料种类：所有装修用木基层均应进行防火、防腐处理\n6. 施工时面层颜色、样式由甲方和设计单位确认选样，投标人综合考虑报价，加工、切割、折边、损耗等不另计，中标后综合单价不予调整\n7. 未尽事宜详见设计图纸、图集、设计补充说明、招标文件、政府相关文件及规范等其它资料，满足验收要求","m",191.04,null,{"v":0,"d":"0.00"}]
[12,"3#","工程名称：3#-公区","111","011207001028","墙面装饰板","1. 部位：会见室等\n2. 龙骨材料种类、规格：轻钢龙骨，规格尺寸满足现场和规范要求，内塞50mm厚岩棉(容重80kg/m3)\n3. 基层材料种类、规格：双层12mm阻燃夹板\n4. 面层材料品种、规格、颜色：白色手扫漆格栅木饰面（WD-B04）\n5. 防护材料种类：所有装修用木基层均应进行防火、防腐处理\n6. 施工时面层颜色、样式由甲方和设计单位确认选样，投标人综合考虑报价，加工、切割、折边、损耗等不另计，中标后综合单价不予调整\n7. 未尽事宜详见设计图纸、图集、设计补充说明、招标文件、政府相关文件及规范等其它资料，满足验收要求","1. 部位：会见室等\n4. 面层材料品种、规格、颜色：白色手扫漆格栅木饰面（WD-B04）\n5. 防护材料种类：所有装修用木基层均应进行防火、防腐处理\n6. 施工时面层颜色、样式由甲方和设计单位确认选样，投标人综合考虑报价，加工、切割、折边、损耗等不另计，中标后综合单价不予调整\n7. 未尽事宜详见设计图纸、图集、设计补充说明、招标文件、政府相关文件及规范等其它资料，满足验收要求","m2",10.88,null,{"v":0,"d":"0.00"}]
[13,"3#","工程名称：3#-公区","112","011502002002","木质装饰线","1. 部位：茶室等\n2. 龙骨材料种类、规格：阻燃木方龙骨基层，规格型号综合考虑\n3. 基层材料种类、规格：12mm阻燃夹板\n4. 面层材料品种、规格、颜色：100mm宽深橡木饰面线条（WD-B01）\n5. 防护材料种类：所有装修用木基层均应进行防火、防腐处理\n6. 施工时面层颜色、样式由甲方和设计单位确认选样，投标人综合考虑报价，加工、切割、折边、损耗等不另计，中标后综合单价不予调整\n7. 未尽事宜详见设计图纸、图集、设计补充说明、招标文件、政府相关文件及规范等其它资料，满足验收要求","1. 部位：茶室等\n4. 面层材料品种、规格、颜色：100mm宽深橡木饰面线条（WD-B01）\n5. 防护材料种类：所有装修用木基层均应进行防火、防腐处理\n6. 施工时面层颜色、样式由甲方和设计单位确认选样，投标人综合考虑报价，加工、切割、折边、损耗等不另计，中标后综合单价不予调整\n7. 未尽事宜详见设计图纸、图集、设计补充说明、招标文件、政府相关文件及规范等其它资料，满足验收要求","m",31.24,null,{"v":0,"d":"0.00"}]
[14,"3#","工程名称：3#-公区","113","011502002003","木质装饰线","1. 部位：茶室等\n2. 龙骨材料种类、规格：热镀锌钢龙骨（不分规格型号，投标人综合考虑），内塞50mm厚岩棉(容重80kg/m3)\n3. 基层材料种类、规格：12mm阻燃夹板\n4. 面层材料品种、规格、颜色：145mm宽橡木饰面线条（WD-B01），凹槽工艺缝综合考虑\n5. 防护材料种类：所有装修用木基层均应进行防火、防腐处理\n6. 施工时面层颜色、样式由甲方和设计单位确认选样，投标人综合考虑报价，加工、切割、折边、损耗等不另计，中标后综合单价不予调整\n7. 未尽事宜详见设计图纸、图集、设计补充说明、招标文件、政府相关文件及规范等其它资料，满足验收要求","1. 部位：茶室等\n4. 面层材料品种、规格、颜色：145mm宽橡木饰面线条（WD-B01），凹槽工艺缝综合考虑\n5. 防护材料种类：所有装修用木基层均应进行防火、防腐处理\n6. 施工时面层颜色、样式由甲方和设计单位确认选样，投标人综合考虑报价，加工、切割、折边、损耗等不另计，中标后综合单价不予调整\n7. 未尽事宜详见设计图纸、图集、设计补充说明、招标文件、政府相关文件及规范等其它资料，满足验收要求","m",14.84,null,{"v":0,"d":"0.00"}]
[15,"3#","工程名称：3#-公区","114","011207001029","墙面装饰板","1. 部位：多功能厅、休息室、餐厅、前厅、会见室、茶室等\n2. 龙骨材料种类、规格：热镀锌钢龙骨（不分规格型号，投标人综合考虑），内塞50mm厚岩棉(容重80kg/m3)\n3. 基层材料种类、规格：12mm阻燃夹板，局部9mm阻燃夹板或双层\n4. 面层材料品种、规格、颜色：12mm深橡木饰面（WD-B01），局部凹槽工艺及灯槽成型等综合考虑\n5. 防护材料种类：所有装修用木基层均应进行防火、防腐处理\n6. 施工时面层颜色、样式由甲方和设计单位确认选样，投标人综合考虑报价，加工、切割、折边、损耗等不另计，中标后综合单价不予调整\n7. 未尽事宜详见设计图纸、图集、设计补充说明、招标文件、政府相关文件及规范等其它资料，满足验收要求","1. 部位：多功能厅、休息室、餐厅、前厅、会见室、茶室等\n4. 面层材料品种、规格、颜色：12mm深橡木饰面（WD-B01），局部凹槽工艺及灯槽成型等综合考虑\n5. 防护材料种类：所有装修用木基层均应进行防火、防腐处理\n6. 施工时面层颜色、样式由甲方和设计单位确认选样，投标人综合考虑报价，加工、切割、折边、损耗等不另计，中标后综合单价不予调整\n7. 未尽事宜详见设计图纸、图集、设计补充说明、招标文件、政府相关文件及规范等其它资料，满足验收要求","m2",454.22,null,{"v":0,"d":"0.00"}]
[16,"3#","工程名称：3#-公区","115","011207001030","墙面装饰板","1. 部位：会议室、休息室、餐厅、前厅、卫生间过道等\n2. 龙骨材料种类、规格：轻钢龙骨，规格尺寸满足现场和规范要求，内塞50mm厚岩棉(容重80kg/m3)\n3. 基层材料种类、规格：12mm阻燃夹板\n4. 面层材料品种、规格、颜色：12mm深橡木饰面（WD-B01），局部凹槽工艺及灯槽成型等综合考虑\n5. 防护材料种类：所有装修用木基层均应进行防火、防腐处理\n6. 施工时面层颜色、样式由甲方和设计单位确认选样，投标人综合考虑报价，加工、切割、折边、损耗等不另计，中标后综合单价不予调整\n7. 未尽事宜详见设计图纸、图集、设计补充说明、招标文件、政府相关文件及规范等其它资料，满足验收要求","1. 部位：会议室、休息室、餐厅、前厅、卫生间过道等\n4. 面层材料品种、规格、颜色：12mm深橡木饰面（WD-B01），局部凹槽工艺及灯槽成型等综合考虑\n5. 防护材料种类：所有装修用木基层均应进行防火、防腐处理\n6. 施工时面层颜色、样式由甲方和设计单位确认选样，投标人综合考虑报价，加工、切割、折边、损耗等不另计，中标后综合单价不予调整\n7. 未尽事宜详见设计图纸、图集、设计补充说明、招标文件、政府相关文件及规范等其它资料，满足验收要求","m2",526.34,null,{"v":0,"d":"0.00"}]
[17,"3#","工程名称：3#-公区","116","011207001031","墙面装饰板","1. 部位：休息室、衣帽间等\n2. 基层材料种类、规格：12mm阻燃夹板\n3. 面层材料品种、规格、颜色：12mm深橡木饰面（WD-B01），局部凹槽工艺缝综合考虑\n4. 防护材料种类：所有装修用木基层均应进行防火、防腐处理\n5. 施工时面层颜色、样式由甲方和设计单位确认选样，投标人综合考虑报价，加工、切割、折边、损耗等不另计，中标后综合单价不予调整\n6. 未尽事宜详见设计图纸、图集、设计补充说明、招标文件、政府相关文件及规范等其它资料，满足验收要求","1. 部位：休息室、衣帽间等\n3. 面层材料品种、规格、颜色：12mm深橡木饰面（WD-B01），局部凹槽工艺缝综合考虑\n4. 防护材料种类：所有装修用木基层均应进行防火、防腐处理\n5. 施工时面层颜色、样式由甲方和设计单位确认选样，投标人综合考虑报价，加工、切割、折边、损耗等不另计，中标后综合单价不予调整\n6. 未尽事宜详见设计图纸、图集、设计补充说明、招标文件、政府相关文件及规范等其它资料，满足验收要求","m2",92.25,null,{"v":0,"d":"0.00"}]
[18,"3#","工程名称：3#-公区","117","011207001032","墙面装饰板","1. 部位：会议室等\n2. 龙骨材料种类、规格：热镀锌钢龙骨+轻钢龙骨（不分规格型号，投标人综合考虑），内塞50mm厚岩棉(容重80kg/m3)\n3. 基层材料种类、规格：12mm阻燃夹板\n4. 面层材料品种、规格、颜色：12mm深橡木饰面（WD-B01）\n5. 防护材料种类：所有装修用木基层均应进行防火、防腐处理\n6. 施工时面层颜色、样式由甲方和设计单位确认选样，投标人综合考虑报价，加工、切割、折边、损耗等不另计，中标后综合单价不予调整\n7. 未尽事宜详见设计图纸、图集、设计补充说明、招标文件、政府相关文件及规范等其它资料，满足验收要求","1. 部位：会议室等\n4. 面层材料品种、规格、颜色：12mm深橡木饰面（WD-B01）\n5. 防护材料种类：所有装修用木基层均应进行防火、防腐处理\n6. 施工时面层颜色、样式由甲方和设计单位确认选样，投标人综合考虑报价，加工、切割、折边、损耗等不另计，中标后综合单价不予调整\n7. 未尽事宜详见设计图纸、图集、设计补充说明、招标文件、政府相关文件及规范等其它资料，满足验收要求","m2",{"v":15,"d":"15.00"},null,{"v":0,"d":"0.00"}]
[19,"3#","工程名称：3#-公区","118","011207001033","墙面装饰板","1. 部位：餐厅等\n2. 龙骨材料种类、规格：热镀锌钢龙骨（不分规格型号，投标人综合考虑），内塞50mm厚岩棉(容重80kg/m3)\n3. 基层材料种类、规格：12mm阻燃夹板，局部双层\n4. 面层材料品种、规格、颜色：12mm弧形深橡木饰面（WD-B01），局部凹槽工艺及灯槽成型等综合考虑\n5. 防护材料种类：所有装修用木基层均应进行防火、防腐处理\n6. 施工时面层颜色、样式由甲方和设计单位确认选样，投标人综合考虑报价，加工、切割、折边、损耗等不另计，中标后综合单价不予调整\n7. 未尽事宜详见设计图纸、图集、设计补充说明、招标文件、政府相关文件及规范等其它资料，满足验收要求","1. 部位：餐厅等\n4. 面层材料品种、规格、颜色：12mm弧形深橡木饰面（WD-B01），局部凹槽工艺及灯槽成型等综合考虑\n5. 防护材料种类：所有装修用木基层均应进行防火、防腐处理\n6. 施工时面层颜色、样式由甲方和设计单位确认选样，投标人综合考虑报价，加工、切割、折边、损耗等不另计，中标后综合单价不予调整\n7. 未尽事宜详见设计图纸、图集、设计补充说明、招标文件、政府相关文件及规范等其它资料，满足验收要求","m2",18.78,null,{"v":0,"d":"0.00"}]
[20,"3#","工程名称：3#-公区","119","011207001034","墙面装饰板","1. 部位：会议室等\n2. 龙骨材料种类、规格：热镀锌钢龙骨+轻钢龙骨（不分规格型号，投标人综合考虑），内塞50mm厚岩棉(容重80kg/m3)\n3. 基层材料种类、规格：12mm阻燃夹板\n4. 面层材料品种、规格、颜色：22mm橡木饰面(格栅)（WD-B01A）\n5. 防护材料种类：所有装修用木基层均应进行防火、防腐处理\n6. 施工时面层颜色、样式由甲方和设计单位确认选样，投标人综合考虑报价，加工、切割、折边、损耗等不另计，中标后综合单价不予调整\n7. 未尽事宜详见设计图纸、图集、设计补充说明、招标文件、政府相关文件及规范等其它资料，满足验收要求","1. 部位：会议室等\n4. 面层材料品种、规格、颜色：22mm橡木饰面(格栅)（WD-B01A）\n5. 防护材料种类：所有装修用木基层均应进行防火、防腐处理\n6. 施工时面层颜色、样式由甲方和设计单位确认选样，投标人综合考虑报价，加工、切割、折边、损耗等不另计，中标后综合单价不予调整\n7. 未尽事宜详见设计图纸、图集、设计补充说明、招标文件、政府相关文件及规范等其它资料，满足验收要求","m2",13.35,null,{"v":0,"d":"0.00"}]
[21,"3#","工程名称：3#-公区","170","010801001001","木饰面暗门","1.工程部位：餐厅、卫生间等\n2.龙骨材料种类、规格：30mm细木工板+双层12mm阻燃夹板+30*30mm镀锌方钢\n3.门套材料种类、规格：12mm阻燃夹板+9mm阻燃夹板+橡木饰面（WD-B01）\n4.门扇材料品种、规格、颜色：深橡木饰面（WD-B01），局部5*5mm凹缝\n5.五金品种、规格：包含但不限于成品金属门把手(选样)、成品五金暗铰链(选型一侧三副)、消音胶条等完成此项工作的全部五金配件\n6.施工时面层颜色、样式由甲方和设计单位确认选样，投标人综合考虑报价，加工、损耗等不另计，中标后综合单价不予调整\n7.未尽事宜详见设计图纸、图集、设计补充说明、招标文件、政府相关文件及规范等其它资料，满足验收要求","1.工程部位：餐厅、卫生间等\n2.龙骨材料种类、规格：30mm细木工板+双层12mm阻燃夹板+30*30mm镀锌方钢\n3.门套材料种类、规格：橡木饰面（WD-B01）\n4.门扇材料品种、规格、颜色：深橡木饰面（WD-B01），局部5*5mm凹缝\n5.五金品种、规格：包含但不限于成品金属门把手(选样)、成品五金暗铰链(选型一侧三副)、消音胶条等完成此项工作的全部五金配件\n6.施工时面层颜色、样式由甲方和设计单位确认选样，投标人综合考虑报价，加工、损耗等不另计，中标后综合单价不予调整\n7.未尽事宜详见设计图纸、图集、设计补充说明、招标文件、政府相关文件及规范等其它资料，满足验收要求","m2",20.44,null,{"v":0,"d":"0.00"}]
[22,"3#","工程名称：3#-公区","173","WB011501001002","衣帽柜","1. 部位：餐厅、衣帽间等\n2. 龙骨材料种类、规格：热镀锌钢龙骨（不分规格型号，投标人综合考虑）、50mm厚岩棉(容重80kg/m3)、局部阻燃木方龙骨\n3. 基层板材料种类、规格：15mm阻燃基层板+12mm阻燃基层板衬板\n4. 面层材料种类、规格：深橡木饰面柜体（WD-B01），灯槽成型、金属饰面拉手等\n5. 五金种类、规格：柜门专用铰链、挂衣杆等五金件\n6. 按照立面投影面积计算\n7. 防护材料种类：所有装修用木基层均应进行防火、防腐处理\n8. 施工时面层颜色、样式由甲方和设计单位确认选样，加工、排版损耗等不另计，投标人综合考虑报价，中标后综合单价不予调整\n9. 未尽事宜详见设计图纸、图集、设计补充说明、招标文件、政府相关文件及规范等其它资料，满足验收要求","1. 部位：餐厅、衣帽间等\n4. 面层材料种类、规格：深橡木饰面柜体（WD-B01），灯槽成型、金属饰面拉手等\n5. 五金种类、规格：柜门专用铰链、挂衣杆等五金件\n6. 按照立面投影面积计算\n7. 防护材料种类：所有装修用木基层均应进行防火、防腐处理\n8. 施工时面层颜色、样式由甲方和设计单位确认选样，加工、排版损耗等不另计，投标人综合考虑报价，中标后综合单价不予调整\n9. 未尽事宜详见设计图纸、图集、设计补充说明、招标文件、政府相关文件及规范等其它资料，满足验收要求","m2",{"v":9.2,"d":"9.20"},null,{"v":0,"d":"0.00"}]
[23,"3#","工程名称：3#-公区","175","WB011501001003","陈列柜","1. 部位：茶室等\n2. 龙骨材料种类、规格：热镀锌钢龙骨（不分规格型号，投标人综合考虑） 局部阻燃木方龙骨\n3. 基层材料种类、规格：12mm阻燃夹板基层，局部多层\n4. 面层材料种类、规格：橡木饰面陈列柜（WD-B01），局部竹编饰面门板（WD-B07），局部灯槽成型，25mm巴洛克紫大理石台面(ST-B07）\n5. 含门铰等五金件\n6. 按照立面投影面积计算\n7. 防护材料种类：所有装修用木基层均应进行防火、防腐处理\n8. 施工时面层颜色、样式由甲方和设计单位确认选样，投标人综合考虑报价，加工、切割、折边、损耗等不另计，中标后综合单价不予调整\n9. 未尽事宜详见设计图纸、图集、设计补充说明、招标文件、政府相关文件及规范等其它资料，满足验收要求","1. 部位：茶室等\n4. 面层材料种类、规格：橡木饰面陈列柜（WD-B01），局部竹编饰面门板（WD-B07），局部灯槽成型，25mm巴洛克紫大理石台面(ST-B07）\n5. 含门铰等五金件\n6. 按照立面投影面积计算\n7. 防护材料种类：所有装修用木基层均应进行防火、防腐处理\n8. 施工时面层颜色、样式由甲方和设计单位确认选样，投标人综合考虑报价，加工、切割、折边、损耗等不另计，中标后综合单价不予调整\n9. 未尽事宜详见设计图纸、图集、设计补充说明、招标文件、政府相关文件及规范等其它资料，满足验收要求","m2",7.46,null,{"v":0,"d":"0.00"}]
[24,"3#","工程名称：3#-公区","193","011207001043","墙面装饰板","1. 部位：公共卫生间等\n2. 基层材质种类、规格：12mm阻燃夹板\n3. 面层材料品种、规格、颜色：10mm仿木纹防火板 （WD-B08）\n4. 防护材料种类：所有装修用木基层均应进行防火、防腐处理\n5. 施工时面层颜色、样式由甲方和设计单位确认选样，投标人综合考虑报价，加工、切割、折边、损耗等不另计，中标后综合单价不予调整\n6. 未尽事宜详见设计图纸、图集、设计补充说明、招标文件、政府相关文件及规范等其它资料，满足验收要求","1. 部位：公共卫生间等\n3. 面层材料品种、规格、颜色：10mm仿木纹防火板 （WD-B08）\n4. 防护材料种类：所有装修用木基层均应进行防火、防腐处理\n5. 施工时面层颜色、样式由甲方和设计单位确认选样，投标人综合考虑报价，加工、切割、折边、损耗等不另计，中标后综合单价不予调整\n6. 未尽事宜详见设计图纸、图集、设计补充说明、招标文件、政府相关文件及规范等其它资料，满足验收要求","m2",2.46,null,{"v":0,"d":"0.00"}]
[25,"3#","工程名称：3#-公区","194","011207001044","墙面装饰板","1. 部位：公共卫生间等\n2. 龙骨材料种类、规格：阻燃木方龙骨，局部12mm阻燃夹板基层综合考虑\n3. 面层材料品种、规格、颜色：10mm仿木纹防火板 （WD-B08）\n4. 防护材料种类：所有装修用木基层均应进行防火、防腐处理\n5. 施工时面层颜色、样式由甲方和设计单位确认选样，投标人综合考虑报价，加工、切割、折边、损耗等不另计，中标后综合单价不予调整\n6. 未尽事宜详见设计图纸、图集、设计补充说明、招标文件、政府相关文件及规范等其它资料，满足验收要求","1. 部位：公共卫生间等\n3. 面层材料品种、规格、颜色：10mm仿木纹防火板 （WD-B08）\n4. 防护材料种类：所有装修用木基层均应进行防火、防腐处理\n5. 施工时面层颜色、样式由甲方和设计单位确认选样，投标人综合考虑报价，加工、切割、折边、损耗等不另计，中标后综合单价不予调整\n6. 未尽事宜详见设计图纸、图集、设计补充说明、招标文件、政府相关文件及规范等其它资料，满足验收要求","m2",12.77,null,{"v":0,"d":"0.00"}]
[26,"3#","工程名称：3#-公区","195","011210006003","卫生间隔断","1. 部位：公区卫生间等\n2. 龙骨材料种类、规格：热镀锌钢龙骨（不分规格型号，投标人综合考虑），底部C20混凝土导墙不另列，报价综合考虑\n3. 基层材料种类、规格：12mm硅酸钙板基层，门扇基层为细木工板+12mm硅酸钙板\n4. 面层材料品种、规格、颜色：双面10mm厚仿木纹防火板（WD-B08），50mm高仿铜不锈钢踢脚线（MT-B04），门上顶面仿铜不锈钢包边(MT-B04）\n5. 施工时面层颜色、样式由甲方和设计单位确认选样，投标人综合考虑报价，加工、切割、折边、损耗等不另计，中标后综合单价不予调整\n6. 未尽事宜详见设计图纸、图集、设计补充说明、招标文件、政府相关文件及规范等其它资料，满足验收要求","1. 部位：公区卫生间等\n4. 面层材料品种、规格、颜色：双面10mm厚仿木纹防火板（WD-B08）\n5. 施工时面层颜色、样式由甲方和设计单位确认选样，投标人综合考虑报价，加工、切割、折边、损耗等不另计，中标后综合单价不予调整\n6. 未尽事宜详见设计图纸、图集、设计补充说明、招标文件、政府相关文件及规范等其它资料，满足验收要求","m2",{"v":72.1,"d":"72.10"},null,{"v":0,"d":"0.00"}]
[27,"3#","工程名称：3#-公区","203","010801001002","木质门","1.工程部位：卫生间等\n2.龙骨材料种类、规格：30mm细木工板+双层12mm阻燃夹板+30*30mm镀锌方钢\n3.门套材料种类、规格：12mm阻燃夹板+9mm阻燃夹板+橡木饰面（WD-B01）\n4.门扇材料品种、规格、颜色：深橡木饰面（WD-B01），局部5*5mm凹缝\n5.五金品种、规格：包含但不限于成品金属门把手(选样)、成品五金暗铰链(选型一侧三副)、消音胶条等完成此项工作的全部五金配件\n6.施工时面层颜色、样式由甲方和设计单位确认选样，投标人综合考虑报价，加工、损耗等不另计，中标后综合单价不予调整\n7.未尽事宜详见设计图纸、图集、设计补充说明、招标文件、政府相关文件及规范等其它资料，满足验收要求","1.工程部位：卫生间等\n2.龙骨材料种类、规格：30mm细木工板+双层12mm阻燃夹板+30*30mm镀锌方钢\n3.门套材料种类、规格：橡木饰面（WD-B01）\n4.门扇材料品种、规格、颜色：深橡木饰面（WD-B01），局部5*5mm凹缝\n5.五金品种、规格：包含但不限于成品金属门把手(选样)、成品五金暗铰链(选型一侧三副)、消音胶条等完成此项工作的全部五金配件\n6.施工时面层颜色、样式由甲方和设计单位确认选样，投标人综合考虑报价，加工、损耗等不另计，中标后综合单价不予调整\n7.未尽事宜详见设计图纸、图集、设计补充说明、招标文件、政府相关文件及规范等其它资料，满足验收要求","m2",11.37,null,{"v":0,"d":"0.00"}]
[28,"3#","工程名称：3#-公区","204","011207001045","墙面装饰板","1.工程部位：卫生间等\n2.基层材料种类、规格：9mm阻燃夹板+12mm阻燃夹板\n3. 面层材料品种、规格、颜色：橡木饰面门楣（WD-B01），含相应的衬板等价格\n4.施工时面层颜色、样式由甲方和设计单位确认选样，投标人综合考虑报价，加工、损耗等不另计，中标后综合单价不予调整\n5.未尽事宜详见设计图纸、图集、设计补充说明、招标文件、政府相关文件及规范等其它资料，满足验收要求","1.工程部位：卫生间等\n3. 面层材料品种、规格、颜色：橡木饰面门楣（WD-B01），含相应的衬板等价格\n4.施工时面层颜色、样式由甲方和设计单位确认选样，投标人综合考虑报价，加工、损耗等不另计，中标后综合单价不予调整\n5.未尽事宜详见设计图纸、图集、设计补充说明、招标文件、政府相关文件及规范等其它资料，满足验收要求","m2",2.67,null,{"v":0,"d":"0.00"}]
[29,"3#","工程名称：3#-公区","205","WB011501001006","洗手台+柜体","1. 部位：卫生间等\n2. 规格尺寸：600mm宽（局部620mm宽）*850mm高（局部880mm高）\n3. 龙骨材料种类、规格：热镀锌钢龙骨（不分规格型号，投标人综合考虑），局部阻燃木方龙骨\n4. 基层材料种类、规格：局部双层12mm阻燃夹板\n5. 面层材料品种、规格、颜色：18mm雪花白大理石（ST-B10）台面，10mm仿木纹防火板饰面(WD-B08），防火板饰面柜体、50mm高不锈钢踢脚线等\n6. 所有石材材料在施工前须做六面防护处理,石材结晶，以保证防水、防腐、防污、防油\n7. 施工时面层颜色、样式由甲方和设计单位确认选样，倒角，磨边、切割等加工费不另计，投标人综合考虑报价，中标后综合单价不予调整\n8. 未尽事宜详见设计图纸、图集、设计补充说明、招标文件、政府相关文件及规范等其它资料，满足验收要求","1. 部位：卫生间等\n2. 规格尺寸：600mm宽（局部620mm宽）*850mm高（局部880mm高）\n5. 面层材料品种、规格、颜色：10mm仿木纹防火板饰面(WD-B08），防火板饰面柜体\n7. 施工时面层颜色、样式由甲方和设计单位确认选样，倒角，磨边、切割等加工费不另计，投标人综合考虑报价，中标后综合单价不予调整\n8. 未尽事宜详见设计图纸、图集、设计补充说明、招标文件、政府相关文件及规范等其它资料，满足验收要求","m",8.29,null,{"v":0,"d":"0.00"}]
[30,"3#","工程名称：3#-公区","229","011210006004","卫生间隔断","1. 部位：卫生间等\n2. 龙骨材料种类、规格：热镀锌钢龙骨（不分规格型号，投标人综合考虑），底部C20混凝土导墙不另列，报价综合考虑\n3. 基层材料种类、规格：12mm硅酸钙板基层，门扇基层为细木工板+12mm硅酸钙板\n4. 面层材料品种、规格、颜色：双面10mm厚仿木纹防火板（WD-B08），50mm高仿铜不锈钢踢脚线（MT-B04），门上顶面仿铜不锈钢包边(MT-B04）\n5. 施工时面层颜色、样式由甲方和设计单位确认选样，投标人综合考虑报价，加工、切割、折边、损耗等不另计，中标后综合单价不予调整\n6. 未尽事宜详见设计图纸、图集、设计补充说明、招标文件、政府相关文件及规范等其它资料，满足验收要求","1. 部位：卫生间等\n4. 面层材料品种、规格、颜色：双面10mm厚仿木纹防火板（WD-B08）\n5. 施工时面层颜色、样式由甲方和设计单位确认选样，投标人综合考虑报价，加工、切割、折边、损耗等不另计，中标后综合单价不予调整\n6. 未尽事宜详见设计图纸、图集、设计补充说明、招标文件、政府相关文件及规范等其它资料，满足验收要求","m2",7.37,null,{"v":0,"d":"0.00"}]
[31,"3#","工程名称：3#-公区","249","WB010801004005","木质门","1.工程部位：储藏室、后场走道、备餐间、电梯厅、办公室、休息室、二层机房等\n2.门扇龙骨、基层材质种类、规格：成名门芯板+30mm细木工板+四周30*30mm热镀锌方通+12mm阻燃夹板+12mm雪弗板\n3.门套材料种类、规格：15mm阻燃夹板+9mm阻燃夹板+橡木饰面（WD-B01）\n4.面层材料品种、规格、颜色：正面皮革硬包（UP-B02）1.2mm仿铜不锈钢包边（MT-B04）+10mm仿铜不锈钢嵌条（MT-B04），背面橡木饰面（WD-B01）\n5.五金品种、规格：包含但不限于成品金属门把手(选样)、成品五金暗铰链(选型一侧三副)、消音胶条等完成此项工作的全部五金配件\n6.施工时面层颜色、样式由甲方和设计单位确认选样，投标人综合考虑报价，加工、损耗等不另计，中标后综合单价不予调整\n7.未尽事宜详见设计图纸、图集、设计补充说明、招标文件、政府相关文件及规范等其它资料，满足验收要求","1.工程部位：储藏室、后场走道、备餐间、电梯厅、办公室、休息室、二层机房等\n2.门扇龙骨、基层材质种类、规格：成名门芯板+30mm细木工板+四周30*30mm热镀锌方通+12mm阻燃夹板+12mm雪弗板\n3.门套材料种类、规格：橡木饰面（WD-B01）\n4.面层材料品种、规格、颜色：正面皮革硬包（UP-B02）1.2mm仿铜不锈钢包边（MT-B04）+10mm仿铜不锈钢嵌条（MT-B04），背面橡木饰面（WD-B01）\n5.五金品种、规格：包含但不限于成品金属门把手(选样)、成品五金暗铰链(选型一侧三副)、消音胶条等完成此项工作的全部五金配件\n6.施工时面层颜色、样式由甲方和设计单位确认选样，投标人综合考虑报价，加工、损耗等不另计，中标后综合单价不予调整\n7.未尽事宜详见设计图纸、图集、设计补充说明、招标文件、政府相关文件及规范等其它资料，满足验收要求","m2",10.74,null,{"v":0,"d":"0.00"}]
[32,"3#","工程名称：3#-公区","252","010801001003","木饰面暗门","1.工程部位：备餐间等\n2.龙骨材料种类、规格：30mm细木工板+双层12mm阻燃夹板+30*30mm镀锌方钢\n3.门套材料种类、规格：12mm阻燃夹板+9mm阻燃夹板+橡木饰面（WD-B01）\n4.门扇材料品种、规格、颜色：一侧深橡木饰面（WD-B01）+一侧布艺硬包饰面（WC-B02),局部四周1.2mm仿铜不锈钢包边（MT-B04）\n5.五金品种、规格：包含但不限于成品金属门把手(选样)、成品五金暗铰链(选型一侧三副)、消音胶条等完成此项工作的全部五金配件\n6.施工时面层颜色、样式由甲方和设计单位确认选样，投标人综合考虑报价，加工、损耗等不另计，中标后综合单价不予调整\n7.未尽事宜详见设计图纸、图集、设计补充说明、招标文件、政府相关文件及规范等其它资料，满足验收要求","1.工程部位：备餐间等\n2.龙骨材料种类、规格：30mm细木工板+双层12mm阻燃夹板+30*30mm镀锌方钢\n3.门套材料种类、规格：橡木饰面（WD-B01）\n4.门扇材料品种、规格、颜色：一侧深橡木饰面（WD-B01）+一侧布艺硬包饰面（WC-B02),局部四周1.2mm仿铜不锈钢包边（MT-B04）\n5.五金品种、规格：包含但不限于成品金属门把手(选样)、成品五金暗铰链(选型一侧三副)、消音胶条等完成此项工作的全部五金配件\n6.施工时面层颜色、样式由甲方和设计单位确认选样，投标人综合考虑报价，加工、损耗等不另计，中标后综合单价不予调整\n7.未尽事宜详见设计图纸、图集、设计补充说明、招标文件、政府相关文件及规范等其它资料，满足验收要求","m2",5.72,null,{"v":0,"d":"0.00"}]
[33,"3#","工程名称：3#-公区","253","010801001004","木饰面暗门","1.工程部位：卫生间、茶水间、备餐间等\n2.龙骨材料种类、规格：30mm细木工板+双层12mm阻燃夹板+30*30mm镀锌方钢\n3.门套材料种类、规格：12mm阻燃夹板+9mm阻燃夹板+橡木饰面（WD-B01）\n4.门扇材料品种、规格、颜色：深橡木饰面（WD-B01），局部5*5mm凹缝\n5.五金品种、规格：包含但不限于成品金属门把手(选样)、成品五金暗铰链(选型一侧三副)、消音胶条等完成此项工作的全部五金配件\n6.施工时面层颜色、样式由甲方和设计单位确认选样，投标人综合考虑报价，加工、损耗等不另计，中标后综合单价不予调整\n7.未尽事宜详见设计图纸、图集、设计补充说明、招标文件、政府相关文件及规范等其它资料，满足验收要求","1.工程部位：卫生间、茶水间、备餐间等\n2.龙骨材料种类、规格：30mm细木工板+双层12mm阻燃夹板+30*30mm镀锌方钢\n3.门套材料种类、规格：橡木饰面（WD-B01）\n4.门扇材料品种、规格、颜色：深橡木饰面（WD-B01），局部5*5mm凹缝\n5.五金品种、规格：包含但不限于成品金属门把手(选样)、成品五金暗铰链(选型一侧三副)、消音胶条等完成此项工作的全部五金配件\n6.施工时面层颜色、样式由甲方和设计单位确认选样，投标人综合考虑报价，加工、损耗等不另计，中标后综合单价不予调整\n7.未尽事宜详见设计图纸、图集、设计补充说明、招标文件、政府相关文件及规范等其它资料，满足验收要求","m2",27.89,null,{"v":0,"d":"0.00"}]
[34,"3#","工程名称：3#-公区","254","011207001047","墙面装饰板","1.工程部位：卫生间等\n2.基层材料种类、规格：9mm阻燃夹板+12mm阻燃夹板\n3. 面层材料品种、规格、颜色：橡木饰面门楣（WD-B01），含相应的衬板等价格\n4.施工时面层颜色、样式由甲方和设计单位确认选样，投标人综合考虑报价，加工、损耗等不另计，中标后综合单价不予调整\n5.未尽事宜详见设计图纸、图集、设计补充说明、招标文件、政府相关文件及规范等其它资料，满足验收要求","1.工程部位：卫生间等\n3. 面层材料品种、规格、颜色：橡木饰面门楣（WD-B01），含相应的衬板等价格\n4.施工时面层颜色、样式由甲方和设计单位确认选样，投标人综合考虑报价，加工、损耗等不另计，中标后综合单价不予调整\n5.未尽事宜详见设计图纸、图集、设计补充说明、招标文件、政府相关文件及规范等其它资料，满足验收要求","m2",4.01,null,{"v":0,"d":"0.00"}]
[35,"3#","工程名称：3#-公区","257","WB011501001010","地柜","1. 部位：备餐间、茶水间等\n2. 柜体尺寸：600*850mm\n3. 龙骨、基层材料种类、规格：木龙骨+局部12mm阻燃夹板基层\n4. 面层材料品种、规格、颜色：25mm维纳斯白大理石台面(ST-B09）、橡木饰面柜体（WD-B01）等，具体做法由厂家二次深化，费用综合考虑。\n5. 五金品种、规格：包括但不限于烟斗合页、弹簧铰链、拉手等所有五金\n6. 未尽事宜详见设计图纸、图集、设计补充说明、招标文件、政府相关文件及规范等其它资料，满足验收要求","1. 部位：备餐间、茶水间等\n2. 柜体尺寸：600*850mm\n3. 龙骨、基层材料种类、规格：木龙骨+局部12mm阻燃夹板基层\n4. 面层材料品种、规格、颜色：25mm维纳斯白大理石台面(ST-B09）、橡木饰面柜体（WD-B01）等，具体做法由厂家二次深化，费用综合考虑。\n5. 五金品种、规格：包括但不限于烟斗合页、弹簧铰链、拉手等所有五金\n6. 未尽事宜详见设计图纸、图集、设计补充说明、招标文件、政府相关文件及规范等其它资料，满足验收要求","m",{"v":7.7,"d":"7.70"},null,{"v":0,"d":"0.00"}]
[36,"3#","工程名称：3#-公区","258","WB011501001011","吊柜","1. 部位：备餐间、茶水间等\n2. 柜体尺寸：350mm宽*900mm高\n3. 龙骨材料种类、规格：木龙骨+镀锌钢板预埋件固定\n4. 柜体材料种类、规格：12mm深橡木饰面（WD-B01），含灯槽成型，具体由柜体厂家二次深化\n5. 五金品种、规格：包括但不限于烟斗合页、弹簧铰链、拉手等所有五金\n6. 未尽事宜详见设计图纸、图集、设计补充说明、招标文件、政府相关文件及规范等其它资料，满足验收要求汇总","1. 部位：备餐间、茶水间等\n2. 柜体尺寸：350mm宽*900mm高\n3. 龙骨材料种类、规格：木龙骨+镀锌钢板预埋件固定\n4. 柜体材料种类、规格：12mm深橡木饰面（WD-B01），含灯槽成型，具体由柜体厂家二次深化\n5. 五金品种、规格：包括但不限于烟斗合页、弹簧铰链、拉手等所有五金\n6. 未尽事宜详见设计图纸、图集、设计补充说明、招标文件、政府相关文件及规范等其它资料，满足验收要求汇总","m",7.95,null,{"v":0,"d":"0.00"}]
[37,"3#","工程名称：3#-公区","312","WB010801004006","装饰门扇安装","1. 部位：木饰面门(GM1124/2131/1724）\n2. 门扇龙骨材料种类、规格：成品门芯板\n3. 面层材料种类、规格：12mm深橡木饰面（（WD-B01）+玻璃观察窗+不锈钢护门板\n4. 门套基层、面层材料种类、规格：双层12mm阻燃夹板+12mm深橡木饰面（WD-B01）\n5. 五金品种、规格：包含但不限于成品五金暗铰链、成品金属门把手、门锁、闭门器等完成此项工作的全部五金配件\n6. 未尽事宜详见设计图纸、图集、设计补充说明、招标文件、政府相关文件及规范等其它资料，满足验收要求","1. 部位：木饰面门(GM1124/2131/1724）\n2. 门扇龙骨材料种类、规格：成品门芯板\n3. 面层材料种类、规格：12mm深橡木饰面（（WD-B01）+玻璃观察窗+不锈钢护门板\n4. 门套面层材料种类、规格：12mm深橡木饰面（WD-B01）\n5. 五金品种、规格：包含但不限于成品五金暗铰链、成品金属门把手、门锁、闭门器等完成此项工作的全部五金配件\n6. 未尽事宜详见设计图纸、图集、设计补充说明、招标文件、政府相关文件及规范等其它资料，满足验收要求","m2",19.47,null,{"v":0,"d":"0.00"}]
[38,"3#","工程名称：3#-公区","337","011207001063","墙面装饰板","1. 部位：地下货梯厅墙裙\n2. 面层材料品种、规格、颜色：10mm厚淡灰色防火板墙裙\n3. 线条材料品种、规格、颜色：铝合金收边条收口\n4. 防护材料种类：所有装修用木材均应进行防火、防腐处理\n5. 施工时面层颜色、样式由甲方和设计单位确认选样，投标人综合考虑报价，加工、切割、折边、损耗等不另计，中标后综合单价不予调整\n6. 未尽事宜详见设计图纸、图集、设计补充说明、招标文件、政府相关文件及规范等其它资料，满足验收要求","1. 部位：地下货梯厅墙裙\n2. 面层材料品种、规格、颜色：10mm厚淡灰色防火板墙裙\n4. 防护材料种类：所有装修用木材均应进行防火、防腐处理\n5. 施工时面层颜色、样式由甲方和设计单位确认选样，投标人综合考虑报价，加工、切割、折边、损耗等不另计，中标后综合单价不予调整\n6. 未尽事宜详见设计图纸、图集、设计补充说明、招标文件、政府相关文件及规范等其它资料，满足验收要求","m2",{"v":46.1,"d":"46.10"},null,{"v":0,"d":"0.00"}]
[39,"3#","工程名称：3#-公区","338","011210006005","卫生间隔断","1. 部位：公区卫生间\n2. 龙骨材料种类、规格：热镀锌钢龙骨（不分规格型号，投标人综合考虑），底部C20混凝土导墙不另列，报价综合考虑\n3. 基层材料种类、规格：12mm硅酸钙板基层，门扇基层为细木工板+12mm硅酸钙板\n4. 面层材料品种、规格、颜色：双面10mm厚仿木纹防火板（WD-B08），50mm高仿铜不锈钢踢脚线（MT-B04），门上顶面仿铜不锈钢包边(MT-B04）\n5. 施工时面层颜色、样式由甲方和设计单位确认选样，投标人综合考虑报价，加工、切割、折边、损耗等不另计，中标后综合单价不予调整\n6. 未尽事宜详见设计图纸、图集、设计补充说明、招标文件、政府相关文件及规范等其它资料，满足验收要求","1. 部位：公区卫生间\n4. 面层材料品种、规格、颜色：双面10mm厚仿木纹防火板（WD-B08）\n5. 施工时面层颜色、样式由甲方和设计单位确认选样，投标人综合考虑报价，加工、切割、折边、损耗等不另计，中标后综合单价不予调整\n6. 未尽事宜详见设计图纸、图集、设计补充说明、招标文件、政府相关文件及规范等其它资料，满足验收要求","m2",26.49,null,{"v":0,"d":"0.00"}]
[40,"5#","工程名称：5#-公区","11","WB010801004002","木质装饰门","1. 部位：大堂服务区通往办公区\n2. 龙骨材料种类、规格：成名门芯板+热镀锌方钢（不分规格型号，投标人综合考虑）\n3. 门套材料种类、规格：双层15mm阻燃夹板+12mm深橡木饰面（WD-B01）\n4. 门扇材料品种、规格、颜色：1.2mm仿铜覆膜不锈钢（MT-B04）+12mm深橡木饰面（WD-B01）\n5. 五金品种、规格：包含但不限于优质合页、消音铰条、门锁、门把手、成品挡尘条等完成此项工作的全部五金配件\n6. 施工时面层颜色、样式由甲方和设计单位确认选样，投标人综合考虑报价，加工、损耗等不另计，中标后综合单价不予调整\n7. 未尽事宜详见设计图纸、图集、设计补充说明、招标文件、政府相关文件及规范等其它资料，满足验收要求","1. 部位：大堂服务区通往办公区\n2. 龙骨材料种类、规格：成名门芯板+热镀锌方钢（不分规格型号，投标人综合考虑）\n3. 门套材料种类、规格：12mm深橡木饰面（WD-B01）\n4. 门扇材料品种、规格、颜色：1.2mm仿铜覆膜不锈钢（MT-B04）+12mm深橡木饰面（WD-B01）\n5. 五金品种、规格：包含但不限于优质合页、消音铰条、门锁、门把手、成品挡尘条等完成此项工作的全部五金配件\n6. 施工时面层颜色、样式由甲方和设计单位确认选样，投标人综合考虑报价，加工、损耗等不另计，中标后综合单价不予调整\n7. 未尽事宜详见设计图纸、图集、设计补充说明、招标文件、政府相关文件及规范等其它资料，满足验收要求","m2",{"v":4,"d":"4.00"},null,{"v":0,"d":"0.00"}]
[41,"5#","工程名称：5#-公区","15","WB010801004004","木质装饰门","1. 部位：公区\n2. 龙骨材料种类、规格：成名门芯板+热镀锌方钢（不分规格型号，投标人综合考虑）\n3. 门套材料种类、规格：双层15mm阻燃夹板+12mm深橡木饰面（WD-B01）\n4. 门扇材料品种、规格、颜色：木转印（MT-B04）+12mm深橡木饰面（WD-B01）\n5. 五金品种、规格：包含但不限于优质合页、消音铰条、门锁、门把手、成品挡尘条等完成此项工作的全部五金配件\n6. 施工时面层颜色、样式由甲方和设计单位确认选样，投标人综合考虑报价，加工、损耗等不另计，中标后综合单价不予调整\n7. 未尽事宜详见设计图纸、图集、设计补充说明、招标文件、政府相关文件及规范等其它资料，满足验收要求","1. 部位：公区\n2. 龙骨材料种类、规格：成名门芯板+热镀锌方钢（不分规格型号，投标人综合考虑）\n3. 门套材料种类、规格：12mm深橡木饰面（WD-B01）\n4. 门扇材料品种、规格、颜色：木转印（MT-B04）+12mm深橡木饰面（WD-B01）\n5. 五金品种、规格：包含但不限于优质合页、消音铰条、门锁、门把手、成品挡尘条等完成此项工作的全部五金配件\n6. 施工时面层颜色、样式由甲方和设计单位确认选样，投标人综合考虑报价，加工、损耗等不另计，中标后综合单价不予调整\n7. 未尽事宜详见设计图纸、图集、设计补充说明、招标文件、政府相关文件及规范等其它资料，满足验收要求","m2",2.51,null,{"v":0,"d":"0.00"}]
[42,"5#","工程名称：5#-公区","53","WB011501001001","服务台","1. 部位：大堂\n2. 台柜规格：4800*1000*1100mm\n3. 龙骨、基层种类、规格：镀锌方管钢架、双层15mm阻燃夹板、12mm阻燃夹板等多种基层板\n4. 面层材料品种、规格、颜色：巴洛克紫大理石（ST-B07）、瑞吉黑大理（ST-B08）、深橡木饰面（WD-B01）柜体、50mm仿铜覆膜不锈钢踢脚线（MT-B03）、灯槽成型\n5. 五金品种、规格：包括但不限于抽屉滑轨、弹簧铰链、合页等完成此项工作的全部五金配件\n6. 施工时面层颜色、样式由甲方和设计单位确认选样，加工、排版损耗等不另计，投标人综合考虑报价，中标后综合单价不予调整\n7 .未尽事宜详见设计图纸、图集、设计补充说明、招标文件、政府相关文件及规范等其它资料，满足验收要求","1. 部位：大堂\n2. 台柜规格：4800*1000*1100mm\n4. 面层材料品种、规格、颜色：深橡木饰面（WD-B01）柜体、灯槽成型\n5. 五金品种、规格：包括但不限于抽屉滑轨、弹簧铰链、合页等完成此项工作的全部五金配件\n6. 施工时面层颜色、样式由甲方和设计单位确认选样，加工、排版损耗等不另计，投标人综合考虑报价，中标后综合单价不予调整\n7 .未尽事宜详见设计图纸、图集、设计补充说明、招标文件、政府相关文件及规范等其它资料，满足验收要求","m",{"v":4.8,"d":"4.80"},null,{"v":0,"d":"0.00"}]
[43,"5#","工程名称：5#-公区","54","WB011501001002","吊柜","1. 部位：茶水间\n2. 柜体尺寸：350mm宽\n3. 龙骨材料种类、规格：木龙骨+镀锌钢板预埋件固定\n4. 柜体材料种类、规格：12mm深橡木饰面（WD-B01），具体由柜体厂家二次深化\n5. 五金品种、规格：包括但不限于烟斗合页、弹簧铰链、拉手等所有五金\n6. 未尽事宜详见设计图纸、图集、设计补充说明、招标文件、政府相关文件及规范等其它资料，满足验收要求","1. 部位：茶水间\n2. 柜体尺寸：350mm宽\n3. 龙骨材料种类、规格：木龙骨+镀锌钢板预埋件固定\n4. 柜体材料种类、规格：12mm深橡木饰面（WD-B01），具体由柜体厂家二次深化\n5. 五金品种、规格：包括但不限于烟斗合页、弹簧铰链、拉手等所有五金\n6. 未尽事宜详见设计图纸、图集、设计补充说明、招标文件、政府相关文件及规范等其它资料，满足验收要求","m2",3.84,null,{"v":0,"d":"0.00"}]
[44,"5#","工程名称：5#-公区","55","WB011501001003","地柜","1. 部位：备餐间、茶水间\n2. 柜体尺寸：550mm*850mm*长（详见设计文件）\n3. 龙骨、基层材料种类、规格：木龙骨+18mm阻燃夹板\n4. 面层材料品种、规格、颜色：25mm维纳斯白大理石台面(ST-B09）、深橡木饰面柜体、层板（WD-B01）等，具体做法由厂家二次深化，费用综合考虑。\n5. 五金品种、规格：包括但不限于烟斗合页、弹簧铰链、拉手等所有五金\n6. 未尽事宜详见设计图纸、图集、设计补充说明、招标文件、政府相关文件及规范等其它资料，满足验收要求","1. 部位：备餐间、茶水间\n2. 柜体尺寸：550mm*850mm*长（详见设计文件）\n3. 龙骨、基层材料种类、规格：木龙骨+18mm阻燃夹板\n4. 面层材料品种、规格、颜色：25mm维纳斯白大理石台面(ST-B09）、深橡木饰面柜体、层板（WD-B01）等，具体做法由厂家二次深化，费用综合考虑。\n5. 五金品种、规格：包括但不限于烟斗合页、弹簧铰链、拉手等所有五金\n6. 未尽事宜详见设计图纸、图集、设计补充说明、招标文件、政府相关文件及规范等其它资料，满足验收要求","m",3.84,null,{"v":0,"d":"0.00"}]
[45,"5#","工程名称：5#-公区","63","010801001001","木质门","1. 部位：卫生间、茶水间、备餐间等\n2. 门扇基层材料种类、规格：成品门芯板\n3. 面层材料种类、规格：12mm深橡木饰面（WD-B01），包含木饰面门套+阻燃板基层\n4. 五金品种、规格：包括不限于暗铰链、磁碰、天地轴、门锁、拉手等完成此项工作的全部五金配件\n5. 未尽事宜详见设计图纸、图集、设计补充说明、招标文件、政府相关文件及规范等其它资料，满足验收要求","1. 部位：卫生间、茶水间、备餐间等\n2. 门扇基层材料种类、规格：成品门芯板\n3. 面层材料种类、规格：12mm深橡木饰面（WD-B01），包含木饰面门套\n4. 五金品种、规格：包括不限于暗铰链、磁碰、天地轴、门锁、拉手等完成此项工作的全部五金配件\n5. 未尽事宜详见设计图纸、图集、设计补充说明、招标文件、政府相关文件及规范等其它资料，满足验收要求","m2",15.41,null,{"v":0,"d":"0.00"}]
[46,"5#","工程名称：5#-公区","64","WB010801004005","木质装饰门","1. 部位：走道通往茶水间/会见厅通往茶水间\n2. 龙骨材料种类、规格：成名门芯板+热镀锌方钢（不分规格型号，投标人综合考虑）\n3. 门套材料种类、规格：双层15mm阻燃夹板+12mm深橡木饰面（WD-B01）\n4. 门扇材料品种、规格、颜色：1.2mm仿铜覆膜不锈钢（MT-B04）+12mm深橡木饰面（WD-B01）\n5. 五金品种、规格：包含但不限于优质合页、消音铰条、门锁、门把手、成品挡尘条等完成此项工作的全部五金配件\n6. 施工时面层颜色、样式由甲方和设计单位确认选样，投标人综合考虑报价，加工、损耗等不另计，中标后综合单价不予调整\n7. 未尽事宜详见设计图纸、图集、设计补充说明、招标文件、政府相关文件及规范等其它资料，满足验收要求","1. 部位：走道通往茶水间/会见厅通往茶水间\n2. 龙骨材料种类、规格：成名门芯板+热镀锌方钢（不分规格型号，投标人综合考虑）\n3. 门套材料种类、规格：12mm深橡木饰面（WD-B01）\n4. 门扇材料品种、规格、颜色：1.2mm仿铜覆膜不锈钢（MT-B04）+12mm深橡木饰面（WD-B01）\n5. 五金品种、规格：包含但不限于优质合页、消音铰条、门锁、门把手、成品挡尘条等完成此项工作的全部五金配件\n6. 施工时面层颜色、样式由甲方和设计单位确认选样，投标人综合考虑报价，加工、损耗等不另计，中标后综合单价不予调整\n7. 未尽事宜详见设计图纸、图集、设计补充说明、招标文件、政府相关文件及规范等其它资料，满足验收要求","m2",3.68,null,{"v":0,"d":"0.00"}]
[47,"5#","工程名称：5#-公区","65","WB010801004006","木质装饰门","1. 部位：多功能厅\n2. 龙骨材料种类、规格：成名门芯板+热镀锌方钢（不分规格型号，投标人综合考虑）\n3. 门套材料种类、规格：双层15mm阻燃夹板+12mm深橡木饰面（WD-B01）\n4. 门扇材料品种、规格、颜色：布艺硬包（1）(12mm雪弗板+扪布饰面)（WC-B02）+深橡木饰面（WD-B01）\n5. 五金品种、规格：包含但不限于优质合页、消音铰条、门锁、门把手、成品挡尘条等完成此项工作的全部五金配件\n6. 施工时面层颜色、样式由甲方和设计单位确认选样，投标人综合考虑报价，加工、损耗等不另计，中标后综合单价不予调整\n7. 未尽事宜详见设计图纸、图集、设计补充说明、招标文件、政府相关文件及规范等其它资料，满足验收要求","1. 部位：多功能厅\n2. 龙骨材料种类、规格：成名门芯板+热镀锌方钢（不分规格型号，投标人综合考虑）\n3. 门套材料种类、规格：12mm深橡木饰面（WD-B01）\n4. 门扇材料品种、规格、颜色：布艺硬包（1）(12mm雪弗板+扪布饰面)（WC-B02）+深橡木饰面（WD-B01）\n5. 五金品种、规格：包含但不限于优质合页、消音铰条、门锁、门把手、成品挡尘条等完成此项工作的全部五金配件\n6. 施工时面层颜色、样式由甲方和设计单位确认选样，投标人综合考虑报价，加工、损耗等不另计，中标后综合单价不予调整\n7. 未尽事宜详见设计图纸、图集、设计补充说明、招标文件、政府相关文件及规范等其它资料，满足验收要求","m2",3.68,null,{"v":0,"d":"0.00"}]
[48,"5#","工程名称：5#-公区","66","WB010801004007","木质装饰门","1. 部位：茶水间等\n2. 门扇基层材料种类、规格：成品门芯板+热镀锌方钢（不分规格型号，投标人综合考虑）\n3. 门套材料种类、规格：9mm阻燃夹板+15mm阻燃夹板+12mm深橡木饰面（WD-B01）\n4. 门扇材料品种、规格、颜色：12mm深橡木饰面（WD-B01）+皮革硬包（12mm雪弗板内衬板）（UP-B02）+1.2mm仿铜不锈钢（MT-B04）\n5. 五金品种、规格：包含但不限于优质合页、消音铰条、门锁、门把手、成品挡尘条等完成此项工作的全部五金配件\n6. 施工时面层颜色、样式由甲方和设计单位确认选样，投标人综合考虑报价，加工、损耗等不另计，中标后综合单价不予调整\n7. 未尽事宜详见设计图纸、图集、设计补充说明、招标文件、政府相关文件及规范等其它资料，满足验收要求","1. 部位：茶水间等\n2. 门扇基层材料种类、规格：成品门芯板+热镀锌方钢（不分规格型号，投标人综合考虑）\n3. 门套材料种类、规格：12mm深橡木饰面（WD-B01）\n4. 门扇材料品种、规格、颜色：12mm深橡木饰面（WD-B01）+皮革硬包（12mm雪弗板内衬板）（UP-B02）+1.2mm仿铜不锈钢（MT-B04）\n5. 五金品种、规格：包含但不限于优质合页、消音铰条、门锁、门把手、成品挡尘条等完成此项工作的全部五金配件\n6. 施工时面层颜色、样式由甲方和设计单位确认选样，投标人综合考虑报价，加工、损耗等不另计，中标后综合单价不予调整\n7. 未尽事宜详见设计图纸、图集、设计补充说明、招标文件、政府相关文件及规范等其它资料，满足验收要求","m2",3.63,null,{"v":0,"d":"0.00"}]
[49,"5#","工程名称：5#-公区","70","WB010801002001","木饰面暗门","1.部位：茶艺室检修暗门\n2.暗门龙骨材料种类、规格：细木工板\n3.面层材料种类、规格：12mm深橡木饰面（WD-B01）\n4.五金品种、规格：包括不限于暗铰链、磁碰、天地轴、隐藏拉手等完成此项工作的全部五金配件\n5.未尽事宜详见设计图纸、图集、设计补充说明、招标文件、政府相关文件及规范等其它资料，满足验收要求","1.部位：茶艺室检修暗门\n2.暗门龙骨材料种类、规格：细木工板\n3.面层材料种类、规格：12mm深橡木饰面（WD-B01）\n4.五金品种、规格：包括不限于暗铰链、磁碰、天地轴、隐藏拉手等完成此项工作的全部五金配件\n5.未尽事宜详见设计图纸、图集、设计补充说明、招标文件、政府相关文件及规范等其它资料，满足验收要求","m2",0.72,null,{"v":0,"d":"0.00"}]
[50,"5#","工程名称：5#-公区","117","011207001020","墙面装饰板","1.部位：茶艺室、娱乐室、书法室等\n2.龙骨材料种类、规格：35*35mm木方(阻燃处理)\n3.基层材料种类、规格：12mm阻燃夹板\n4.面层材料品种、规格、颜色：12mm深橡木饰面（WD-B01）\n5.防护材料种类：所有装修用木材均应进行防火、防腐处理\n6.施工时面层颜色、样式由甲方和设计单位确认选样，投标人综合考虑报价，加工、损耗等不另计，中标后综合单价不予调整\n7.未尽事宜详见设计图纸、图集、设计补充说明、招标文件、政府相关文件及规范等其它资料，满足验收要求","1.部位：茶艺室、娱乐室、书法室等\n4.面层材料品种、规格、颜色：12mm深橡木饰面（WD-B01）\n5.防护材料种类：所有装修用木材均应进行防火、防腐处理\n6.施工时面层颜色、样式由甲方和设计单位确认选样，投标人综合考虑报价，加工、损耗等不另计，中标后综合单价不予调整\n7.未尽事宜详见设计图纸、图集、设计补充说明、招标文件、政府相关文件及规范等其它资料，满足验收要求","m2",{"v":13.5,"d":"13.50"},null,{"v":0,"d":"0.00"}]
[51,"5#","工程名称：5#-公区","118","011207001021","墙面装饰板","1．部位：中包间、大包间、小包间、茶艺室等\n2．龙骨材料种类、规格：热镀锌钢龙骨（不分规格型号，投标人综合考虑），内塞50mm厚岩棉(容重80kg/m3)\n3．基层材料种类、规格：9mm阻燃夹板\n4. 面层材料品种、规格、颜色：12mm深橡木饰面（WD-B01）\n5．防护材料种类：所有装修用木基层均应进行防火、防腐处理\n6. 施工时面层颜色、样式由甲方和设计单位确认选样，投标人综合考虑报价，加工、切割、折边、损耗等不另计，中标后综合单价不予调整\n7．未尽事宜详见设计图纸、图集、设计补充说明、招标文件、政府相关文件及规范等其它资料，满足验收要求","1．部位：中包间、大包间、小包间、茶艺室等\n4. 面层材料品种、规格、颜色：12mm深橡木饰面（WD-B01）\n5．防护材料种类：所有装修用木基层均应进行防火、防腐处理\n6. 施工时面层颜色、样式由甲方和设计单位确认选样，投标人综合考虑报价，加工、切割、折边、损耗等不另计，中标后综合单价不予调整\n7．未尽事宜详见设计图纸、图集、设计补充说明、招标文件、政府相关文件及规范等其它资料，满足验收要求","m2",353.86,null,{"v":0,"d":"0.00"}]
[52,"5#","工程名称：5#-公区","119","011207001022","墙面装饰板","1.部位：会见厅等\n2.龙骨材料种类、规格：热镀锌钢龙骨（不分规格型号，投标人综合考虑），内塞50mm厚岩棉(容重80kg/m3)\n3.基层材料种类、规格：15mm阻燃夹板\n4.面层材料品种、规格、颜色：12mm深橡木饰面（WD-B01），10*10mm凹槽工艺缝、车缝线等\n5.防护材料种类：所有装修用木材均应进行防火、防腐处理\n6.施工时面层颜色、样式由甲方和设计单位确认选样，投标人综合考虑报价，加工、损耗等不另计，中标后综合单价不予调整\n7.未尽事宜详见设计图纸、图集、设计补充说明、招标文件、政府相关文件及规范等其它资料，满足验收要求","1.部位：会见厅等\n4.面层材料品种、规格、颜色：12mm深橡木饰面（WD-B01），10*10mm凹槽工艺缝、车缝线等\n5.防护材料种类：所有装修用木材均应进行防火、防腐处理\n6.施工时面层颜色、样式由甲方和设计单位确认选样，投标人综合考虑报价，加工、损耗等不另计，中标后综合单价不予调整\n7.未尽事宜详见设计图纸、图集、设计补充说明、招标文件、政府相关文件及规范等其它资料，满足验收要求","m2",73.93,null,{"v":0,"d":"0.00"}]
[53,"5#","工程名称：5#-公区","120","011207001023","墙面装饰板","1．部位：大包间、中包间、会见室等\n2．龙骨材料种类、规格：轻钢龙骨，规格尺寸满足现场和规范要求，内塞50mm厚岩棉(容重80kg/m3)\n3．基层材料种类、规格：9mm阻燃夹板\n4. 面层材料品种、规格、颜色：12mm深橡木饰面（WD-B01）\n5．防护材料种类：所有装修用木基层均应进行防火、防腐处理\n6. 施工时面层颜色、样式由甲方和设计单位确认选样，投标人综合考虑报价，加工、切割、折边、损耗等不另计，中标后综合单价不予调整\n7．未尽事宜详见设计图纸、图集、设计补充说明、招标文件、政府相关文件及规范等其它资料，满足验收要求","1．部位：大包间、中包间、会见室等\n4. 面层材料品种、规格、颜色：12mm深橡木饰面（WD-B01）\n5．防护材料种类：所有装修用木基层均应进行防火、防腐处理\n6. 施工时面层颜色、样式由甲方和设计单位确认选样，投标人综合考虑报价，加工、切割、折边、损耗等不另计，中标后综合单价不予调整\n7．未尽事宜详见设计图纸、图集、设计补充说明、招标文件、政府相关文件及规范等其它资料，满足验收要求","m2",76.86,null,{"v":0,"d":"0.00"}]
[54,"5#","工程名称：5#-公区","121","011207001024","墙面装饰板","1.部位：茶艺室、娱乐室、书法室等\n2.龙骨材料种类、规格：50mm竖向隔墙轻钢龙骨，50mm厚岩棉(容重80kg/m3)\n3.基层材料种类、规格：12mm阻燃夹板\n4.面层材料品种、规格、颜色：12mm深橡木饰面（WD-B01），10*10mm凹槽工艺缝、车缝线等\n5.防护材料种类：所有装修用木材均应进行防火、防腐处理\n6.施工时面层颜色、样式由甲方和设计单位确认选样，投标人综合考虑报价，加工、损耗等不另计，中标后综合单价不予调整\n7.未尽事宜详见设计图纸、图集、设计补充说明、招标文件、政府相关文件及规范等其它资料，满足验收要求","1.部位：茶艺室、娱乐室、书法室等\n4.面层材料品种、规格、颜色：12mm深橡木饰面（WD-B01），10*10mm凹槽工艺缝、车缝线等\n5.防护材料种类：所有装修用木材均应进行防火、防腐处理\n6.施工时面层颜色、样式由甲方和设计单位确认选样，投标人综合考虑报价，加工、损耗等不另计，中标后综合单价不予调整\n7.未尽事宜详见设计图纸、图集、设计补充说明、招标文件、政府相关文件及规范等其它资料，满足验收要求","m2",58.51,null,{"v":0,"d":"0.00"}]
[55,"5#","工程名称：5#-公区","122","011207001025","墙面装饰板","1．部位：大包间等\n2．龙骨材料种类、规格：热镀锌钢龙骨（不分规格型号，投标人综合考虑），内塞50mm厚岩棉(容重80kg/m3)\n3.基层材料种类、规格：双层9mm阻燃夹板，造型处局部多层综合考虑\n4.面层材料品种、规格、颜色：弧形造型深橡木饰面（WD-B01）\n5.防护材料种类：所有装修用木材均应进行防火、防腐处理\n6.施工时面层颜色、样式由甲方和设计单位确认选样，投标人综合考虑报价，加工、损耗等不另计，中标后综合单价不予调整\n7．未尽事宜详见设计图纸、图集、设计补充说明、招标文件、政府相关文件及规范等其它资料，满足验收要求","1．部位：大包间等\n4.面层材料品种、规格、颜色：弧形造型深橡木饰面（WD-B01）\n5.防护材料种类：所有装修用木材均应进行防火、防腐处理\n6.施工时面层颜色、样式由甲方和设计单位确认选样，投标人综合考虑报价，加工、损耗等不另计，中标后综合单价不予调整\n7．未尽事宜详见设计图纸、图集、设计补充说明、招标文件、政府相关文件及规范等其它资料，满足验收要求","m2",29.75,null,{"v":0,"d":"0.00"}]
[56,"5#","工程名称：5#-公区","136","011207001038","墙面装饰板","1. 部位：卫生间\n2. 龙骨材料种类、规格：20*40mm木方(阻燃处理)\n3. 基层材料种类、规格：12mm硅酸钙板\n4. 面层材料品种、规格、颜色：10mm仿木纹防火板（WD-B08）\n5. 防护材料种类：所有装修用木材均应进行防火、防腐处理\n6. 施工时面层颜色、样式由甲方和设计单位确认选样，投标人综合考虑报价，加工、损耗等不另计，中标后综合单价不予调整\n8. 未尽事宜详见设计图纸、图集、设计补充说明、招标文件、政府相关文件及规范等其它资料，满足验收要求","1. 部位：卫生间\n4. 面层材料品种、规格、颜色：10mm仿木纹防火板（WD-B08）\n5. 防护材料种类：所有装修用木材均应进行防火、防腐处理\n6. 施工时面层颜色、样式由甲方和设计单位确认选样，投标人综合考虑报价，加工、损耗等不另计，中标后综合单价不予调整\n8. 未尽事宜详见设计图纸、图集、设计补充说明、招标文件、政府相关文件及规范等其它资料，满足验收要求","m2",3.73,null,{"v":0,"d":"0.00"}]
[57,"5#","工程名称：5#-公区","141","011210006002","卫生间隔断","1. 部位：公区卫生间\n2. 龙骨材料种类、规格：热镀锌钢龙骨（不分规格型号，投标人综合考虑），底部C20混凝土导墙不另列，报价综合考虑\n3. 基层材料种类、规格：12mm硅酸钙板基层，门扇基层为细木工板+12mm硅酸钙板\n4. 面层材料品种、规格、颜色：双面10mm厚仿木纹防火板（WD-B08），50mm高仿铜不锈钢踢脚线（MT-B04），门上顶面仿铜不锈钢包边(MT-B04）\n5. 施工时面层颜色、样式由甲方和设计单位确认选样，投标人综合考虑报价，加工、切割、折边、损耗等不另计，中标后综合单价不予调整\n6. 未尽事宜详见设计图纸、图集、设计补充说明、招标文件、政府相关文件及规范等其它资料，满足验收要求","1. 部位：公区卫生间\n4. 面层材料品种、规格、颜色：双面10mm厚仿木纹防火板（WD-B08）\n5. 施工时面层颜色、样式由甲方和设计单位确认选样，投标人综合考虑报价，加工、切割、折边、损耗等不另计，中标后综合单价不予调整\n6. 未尽事宜详见设计图纸、图集、设计补充说明、招标文件、政府相关文件及规范等其它资料，满足验收要求","m2",27.92,null,{"v":0,"d":"0.00"}]
[58,"5#","工程名称：5#-公区","167","011502002001","木质装饰线","1.部位：茶艺室、娱乐室、书法室\n2.龙骨材质种类、规格：阻燃木条调平\n3.基层材质种类、规格：12mm阻燃夹板\n4.面层材料品种、规格、颜色：165mm宽深橡木饰面造型线条（WD-B01）\n5.防护材料种类：所有装修用木材均应进行防火、防腐处理\n6.未尽事宜详见设计图纸、图集、设计补充说明、招标文件、政府相关文件及规范等其它资料，满足验收要求","1.部位：茶艺室、娱乐室、书法室\n4.面层材料品种、规格、颜色：165mm宽深橡木饰面造型线条（WD-B01）\n5.防护材料种类：所有装修用木材均应进行防火、防腐处理\n6.未尽事宜详见设计图纸、图集、设计补充说明、招标文件、政府相关文件及规范等其它资料，满足验收要求","m",{"v":175.8,"d":"175.80"},null,{"v":0,"d":"0.00"}]
[59,"5#","工程名称：5#-公区","169","WB011501001004","陈列柜","1.部位：书法室、茶艺室等\n2.柜体背面龙骨、基层材质：50mm竖向隔墙龙骨+50mm岩棉(容重80kg/m3)+12mm阻燃夹板\n3. 基层材料种类、规格：12mm阻燃夹板基层，局部多层\n4. 面层材料种类、规格：橡木饰面陈列柜（WD-B01），局部竹编饰面门板（WD-B07），局部灯槽成型\n5. 含门铰等五金件\n6．按照立面投影面积计算\n7. 防护材料种类：所有装修用木基层均应进行防火、防腐处理\n8. 施工时面层颜色、样式由甲方和设计单位确认选样，投标人综合考虑报价，加工、切割、折边、损耗等不另计，中标后综合单价不予调整\n9. 未尽事宜详见设计图纸、图集、设计补充说明、招标文件、政府相关文件及规范等其它资料，满足验收要求","1.部位：书法室、茶艺室等\n4. 面层材料种类、规格：橡木饰面陈列柜（WD-B01），局部竹编饰面门板（WD-B07），局部灯槽成型\n5. 含门铰等五金件\n6．按照立面投影面积计算\n7. 防护材料种类：所有装修用木基层均应进行防火、防腐处理\n8. 施工时面层颜色、样式由甲方和设计单位确认选样，投标人综合考虑报价，加工、切割、折边、损耗等不另计，中标后综合单价不予调整\n9. 未尽事宜详见设计图纸、图集、设计补充说明、招标文件、政府相关文件及规范等其它资料，满足验收要求","m2",47.24,null,{"v":0,"d":"0.00"}]
[60,"5#","工程名称：5#-公区","170","WB011501001005","吊柜","1. 部位：备餐间、茶水间\n2. 柜体尺寸：350mm宽\n3. 龙骨材料种类、规格：木龙骨+镀锌钢板预埋件固定\n4. 柜体材料种类、规格：12mm深橡木饰面（WD-B01），具体由柜体厂家二次深化\n5. 五金品种、规格：包括但不限于烟斗合页、弹簧铰链、拉手等所有五金\n6. 未尽事宜详见设计图纸、图集、设计补充说明、招标文件、政府相关文件及规范等其它资料，满足验收要求","1. 部位：备餐间、茶水间\n2. 柜体尺寸：350mm宽\n3. 龙骨材料种类、规格：木龙骨+镀锌钢板预埋件固定\n4. 柜体材料种类、规格：12mm深橡木饰面（WD-B01），具体由柜体厂家二次深化\n5. 五金品种、规格：包括但不限于烟斗合页、弹簧铰链、拉手等所有五金\n6. 未尽事宜详见设计图纸、图集、设计补充说明、招标文件、政府相关文件及规范等其它资料，满足验收要求","m2",{"v":14,"d":"14.00"},null,{"v":0,"d":"0.00"}]
[61,"5#","工程名称：5#-公区","171","WB011501001006","地柜","1. 部位：备餐间、茶水间\n2. 柜体尺寸：550mm*850mm*长（详见设计文件）\n3. 龙骨、基层材料种类、规格：木龙骨+18mm阻燃夹板\n4. 面层材料品种、规格、颜色：25mm维纳斯白大理石台面(ST-B09）、深橡木饰面柜体、层板（WD-B01）等，具体做法由厂家二次深化，费用综合考虑。\n5. 五金品种、规格：包括但不限于烟斗合页、弹簧铰链、拉手等所有五金\n6. 未尽事宜详见设计图纸、图集、设计补充说明、招标文件、政府相关文件及规范等其它资料，满足验收要求","1. 部位：备餐间、茶水间\n2. 柜体尺寸：550mm*850mm*长（详见设计文件）\n3. 龙骨、基层材料种类、规格：木龙骨+18mm阻燃夹板\n4. 面层材料品种、规格、颜色：25mm维纳斯白大理石台面(ST-B09）、深橡木饰面柜体、层板（WD-B01）等，具体做法由厂家二次深化，费用综合考虑。\n5. 五金品种、规格：包括但不限于烟斗合页、弹簧铰链、拉手等所有五金\n6. 未尽事宜详见设计图纸、图集、设计补充说明、招标文件、政府相关文件及规范等其它资料，满足验收要求","m",{"v":14,"d":"14.00"},null,{"v":0,"d":"0.00"}]
[62,"5#","工程名称：5#-公区","172","WB011501001007","衣柜","1．部位：大包厢等\n2．规格：700mm宽以内\n3．龙骨材料种类、规格：热镀锌钢龙骨（不分规格型号，投标人综合考虑）+底部木龙骨调平等多种龙骨\n4．基层板材料种类、规格：15mm阻燃夹板等基层类型及厚度综合考虑\n5．材料种类：12mm深橡木饰面（WD-B01）、抽屉柜、不锈钢门把手、不锈钢踢脚线等\n6．五金种类、规格：单价包含五金合页、抽屉滑轨、阻尼隔振胶垫、暗藏灯槽等\n7．按照立面投影面积计算\n8．防护材料种类：所有装修用木基层均应进行防火、防腐处理\n9．施工时面层颜色、样式由甲方和设计单位确认选样，加工、排版损耗等不另计，投标人综合考虑报价，中标后综合单价不予调整\n10．未尽事宜详见设计图纸、图集、设计补充说明、招标文件、政府相关文件及规范等其它资料，满足验收要求","1．部位：大包厢等\n2．规格：700mm宽以内\n5．材料种类：12mm深橡木饰面（WD-B01）、抽屉柜、不锈钢门把手\n6．五金种类、规格：单价包含五金合页、抽屉滑轨、阻尼隔振胶垫、暗藏灯槽等\n7．按照立面投影面积计算\n8．防护材料种类：所有装修用木基层均应进行防火、防腐处理\n9．施工时面层颜色、样式由甲方和设计单位确认选样，加工、排版损耗等不另计，投标人综合考虑报价，中标后综合单价不予调整\n10．未尽事宜详见设计图纸、图集、设计补充说明、招标文件、政府相关文件及规范等其它资料，满足验收要求","m2",13.92,null,{"v":0,"d":"0.00"}]
[63,"5#","工程名称：5#-公区","173","WB011501001008","茶水间木饰面柜体","1. 部位：茶水间设备柜\n2. 柜体尺寸：700*1170*2810mm\n3. 柜体材料种类、规格：12mm深橡木饰面（WD-B01），柜体内无层板\n4. 五金品种、规格：包括但不限于烟斗合页、弹簧铰链、拉手等所有五金\n5. 未尽事宜详见设计图纸、图集、设计补充说明、招标文件、政府相关文件及规范等其它资料，满足验收要求","1. 部位：茶水间设备柜\n2. 柜体尺寸：700*1170*2810mm\n3. 柜体材料种类、规格：12mm深橡木饰面（WD-B01），柜体内无层板\n4. 五金品种、规格：包括但不限于烟斗合页、弹簧铰链、拉手等所有五金\n5. 未尽事宜详见设计图纸、图集、设计补充说明、招标文件、政府相关文件及规范等其它资料，满足验收要求","m2",3.29,null,{"v":0,"d":"0.00"}]
[64,"5#","工程名称：5#-公区","174","WB011501001009","洗手台+柜体","1. 部位：会见厅、大包间\n2. 规格尺寸：600mm宽*850mm高*长详见设计文件\n3. 龙骨材料种类、规格：热镀锌钢龙骨（不分规格型号，投标人综合考虑）\n4. 基层材料种类、规格：12mm硅酸钙板\n5. 面层材料品种、规格、颜色：18mm雪花白大理石（ST-B10）台面，10mm仿木纹防火板饰面(WD-B08）、1.2mm仿铜不锈钢（MT-B04）+防火板饰面及柜体、50mm高不锈钢踢脚线等\n6. 所有石材材料在施工前须做六面防护处理,石材结晶，以保证防水、防腐、防污、防油\n7. 施工时面层颜色、样式由甲方和设计单位确认选样，倒角，磨边、切割等加工费不另计，投标人综合考虑报价，中标后综合单价不予调整\n8. 未尽事宜详见设计图纸、图集、设计补充说明、招标文件、政府相关文件及规范等其它资料，满足验收要求","1. 部位：会见厅、大包间\n2. 规格尺寸：600mm宽*850mm高*长详见设计文件\n5. 面层材料品种、规格、颜色：10mm仿木纹防火板饰面(WD-B08）、1.2mm仿铜不锈钢（MT-B04）+防火板饰面及柜体等\n7. 施工时面层颜色、样式由甲方和设计单位确认选样，倒角，磨边、切割等加工费不另计，投标人综合考虑报价，中标后综合单价不予调整\n8. 未尽事宜详见设计图纸、图集、设计补充说明、招标文件、政府相关文件及规范等其它资料，满足验收要求","m",5.22,null,{"v":0,"d":"0.00"}]
[65,"5#","工程名称：5#-公区","219","010801001003","木质门","1. 部位：公共卫生间\n2. 门扇基层材料种类、规格：成品门芯板\n3. 面层材料种类、规格：12mm深橡木饰面（WD-B01），包含木饰面门套+阻燃板基层\n4. 五金品种、规格：包括不限于暗铰链、磁碰、天地轴、门锁、拉手等完成此项工作的全部五金配件\n5. 未尽事宜详见设计图纸、图集、设计补充说明、招标文件、政府相关文件及规范等其它资料，满足验收要求","1. 部位：公共卫生间\n2. 门扇基层材料种类、规格：成品门芯板\n3. 面层材料种类、规格：12mm深橡木饰面（WD-B01），包含木饰面门套\n4. 五金品种、规格：包括不限于暗铰链、磁碰、天地轴、门锁、拉手等完成此项工作的全部五金配件\n5. 未尽事宜详见设计图纸、图集、设计补充说明、招标文件、政府相关文件及规范等其它资料，满足验收要求","m2",4.51,null,{"$f":"J67*K67","v":{"v":0,"d":"0.00"}}]
[66,"5#","工程名称：5#-公区","220","WB010801004012","装饰门扇安装","1. 部位：残卫木饰面门(GM1024）\n2. 门扇龙骨材料种类、规格：成品门芯板\n3. 面层材料种类、规格：12mm深橡木饰面（（WD-B01）+玻璃观察窗+不锈钢护门板\n4. 门套基层、面层材料种类、规格：双层12mm阻燃夹板+12mm深橡木饰面（WD-B01）\n5. 五金品种、规格：包含但不限于成品五金暗铰链、成品金属门把手、门锁、闭门器等完成此项工作的全部五金配件\n6. 未尽事宜详见设计图纸、图集、设计补充说明、招标文件、政府相关文件及规范等其它资料，满足验收要求","1. 部位：残卫木饰面门(GM1024）\n2. 门扇龙骨材料种类、规格：成品门芯板\n3. 面层材料种类、规格：12mm深橡木饰面（（WD-B01）+玻璃观察窗+不锈钢护门板\n4. 门套面层材料种类、规格：12mm深橡木饰面（WD-B01）\n5. 五金品种、规格：包含但不限于成品五金暗铰链、成品金属门把手、门锁、闭门器等完成此项工作的全部五金配件\n6. 未尽事宜详见设计图纸、图集、设计补充说明、招标文件、政府相关文件及规范等其它资料，满足验收要求","m2",2.44,null,{"v":0,"d":"0.00"}]
[67,"5#","工程名称：5#-公区","233","011207001049","墙面装饰板","1．部位：卫生间\n2．基层材料种类、规格：12mm阻燃夹板\n3. 面层材料品种、规格、颜色：10mm仿木纹防火板（WD-B08）\n4．防护材料种类：所有装修用木基层均应进行防火、防腐处理\n5. 施工时面层颜色、样式由甲方和设计单位确认选样，投标人综合考虑报价，加工、切割、折边、损耗等不另计，中标后综合单价不予调整\n6．未尽事宜详见设计图纸、图集、设计补充说明、招标文件、政府相关文件及规范等其它资料，满足验收要求","1．部位：卫生间\n3. 面层材料品种、规格、颜色：10mm仿木纹防火板（WD-B08）\n4．防护材料种类：所有装修用木基层均应进行防火、防腐处理\n5. 施工时面层颜色、样式由甲方和设计单位确认选样，投标人综合考虑报价，加工、切割、折边、损耗等不另计，中标后综合单价不予调整\n6．未尽事宜详见设计图纸、图集、设计补充说明、招标文件、政府相关文件及规范等其它资料，满足验收要求","m2",2.06,null,{"v":0,"d":"0.00"}]
[68,"5#","工程名称：5#-公区","234","011207001050","墙面装饰板","1. 部位：卫生间\n2. 龙骨材料种类、规格：20*40mm木方(阻燃处理)\n3. 基层材料种类、规格：12mm硅酸钙板\n4. 面层材料品种、规格、颜色：10mm仿木纹防火板（WD-B08）\n5. 防护材料种类：所有装修用木材均应进行防火、防腐处理\n6. 施工时面层颜色、样式由甲方和设计单位确认选样，投标人综合考虑报价，加工、损耗等不另计，中标后综合单价不予调整\n8. 未尽事宜详见设计图纸、图集、设计补充说明、招标文件、政府相关文件及规范等其它资料，满足验收要求","1. 部位：卫生间\n4. 面层材料品种、规格、颜色：10mm仿木纹防火板（WD-B08）\n5. 防护材料种类：所有装修用木材均应进行防火、防腐处理\n6. 施工时面层颜色、样式由甲方和设计单位确认选样，投标人综合考虑报价，加工、损耗等不另计，中标后综合单价不予调整\n8. 未尽事宜详见设计图纸、图集、设计补充说明、招标文件、政府相关文件及规范等其它资料，满足验收要求","m2",6.16,null,{"v":0,"d":"0.00"}]
[69,"5#","工程名称：5#-公区","236","011210006003","卫生间隔断","1. 部位：公区卫生间\n2. 龙骨材料种类、规格：热镀锌钢龙骨（不分规格型号，投标人综合考虑），底部C20混凝土导墙不另列，报价综合考虑\n3. 基层材料种类、规格：12mm硅酸钙板基层，门扇基层为细木工板+12mm硅酸钙板\n4. 面层材料品种、规格、颜色：双面10mm厚仿木纹防火板（WD-B08），50mm高仿铜不锈钢踢脚线（MT-B04），门上顶面仿铜不锈钢包边(MT-B04）\n5. 施工时面层颜色、样式由甲方和设计单位确认选样，投标人综合考虑报价，加工、切割、折边、损耗等不另计，中标后综合单价不予调整\n6. 未尽事宜详见设计图纸、图集、设计补充说明、招标文件、政府相关文件及规范等其它资料，满足验收要求","1. 部位：公区卫生间\n4. 面层材料品种、规格、颜色：双面10mm厚仿木纹防火板（WD-B08）\n5. 施工时面层颜色、样式由甲方和设计单位确认选样，投标人综合考虑报价，加工、切割、折边、损耗等不另计，中标后综合单价不予调整\n6. 未尽事宜详见设计图纸、图集、设计补充说明、招标文件、政府相关文件及规范等其它资料，满足验收要求","m2",{"v":32.2,"d":"32.20"},null,{"v":0,"d":"0.00"}]
[70,"5#","工程名称：5#-公区","243","WB011501001011","洗手台+柜体","1. 部位：公共卫生间\n2. 规格尺寸：600mm宽*850mm高*长详见设计文件\n3. 龙骨材料种类、规格：热镀锌钢龙骨（不分规格型号，投标人综合考虑）\n4. 基层材料种类、规格：12mm硅酸钙板\n5. 面层材料品种、规格、颜色：18mm雪花白大理石（ST-B10）台面，10mm仿木纹防火板饰面(WD-B08）、1.2mm仿铜不锈钢（MT-B04）+防火板饰面及柜体、50mm高不锈钢踢脚线等\n6. 所有石材材料在施工前须做六面防护处理,石材结晶，以保证防水、防腐、防污、防油\n7. 施工时面层颜色、样式由甲方和设计单位确认选样，倒角，磨边、切割等加工费不另计，投标人综合考虑报价，中标后综合单价不予调整\n8. 未尽事宜详见设计图纸、图集、设计补充说明、招标文件、政府相关文件及规范等其它资料，满足验收要求","1. 部位：公共卫生间\n2. 规格尺寸：600mm宽*850mm高*长详见设计文件\n5. 面层材料品种、规格、颜色：10mm仿木纹防火板饰面(WD-B08）、1.2mm仿铜不锈钢（MT-B04）+防火板饰面及柜体\n7. 施工时面层颜色、样式由甲方和设计单位确认选样，倒角，磨边、切割等加工费不另计，投标人综合考虑报价，中标后综合单价不予调整\n8. 未尽事宜详见设计图纸、图集、设计补充说明、招标文件、政府相关文件及规范等其它资料，满足验收要求","m",5.57,null,{"v":0,"d":"0.00"}]
[71,"5#","工程名称：5#-公区","248","010801001004","木质门","1. 部位：后场及卫生间等\n2. 门扇基层材料种类、规格：成品门芯板\n3. 面层材料种类、规格：12mm深橡木饰面（WD-B01），包含木饰面门套+阻燃板基层\n4. 五金品种、规格：包括不限于暗铰链、磁碰、天地轴、门锁、拉手等完成此项工作的全部五金配件\n5. 未尽事宜详见设计图纸、图集、设计补充说明、招标文件、政府相关文件及规范等其它资料，满足验收要求","1. 部位：后场及卫生间等\n2. 门扇基层材料种类、规格：成品门芯板\n3. 面层材料种类、规格：12mm深橡木饰面（WD-B01），包含木饰面门套\n4. 五金品种、规格：包括不限于暗铰链、磁碰、天地轴、门锁、拉手等完成此项工作的全部五金配件\n5. 未尽事宜详见设计图纸、图集、设计补充说明、招标文件、政府相关文件及规范等其它资料，满足验收要求","m2",{"v":2.4,"d":"2.40"},null,{"v":0,"d":"0.00"}]
[72,"5#","工程名称：5#-公区","271","010801001005","木质门","1. 部位：洗衣间、消洗间、布草间、值班室等\n2. 门扇基层材料种类、规格：成品门芯板\n3. 面层材料种类、规格：12mm深橡木饰面（WD-B01），包含木饰面门套+阻燃板基层\n4. 五金品种、规格：包括不限于暗铰链、磁碰、天地轴、门锁、拉手等完成此项工作的全部五金配件\n5. 未尽事宜详见设计图纸、图集、设计补充说明、招标文件、政府相关文件及规范等其它资料，满足验收要求","1. 部位：洗衣间、消洗间、布草间、值班室等\n2. 门扇基层材料种类、规格：成品门芯板\n3. 面层材料种类、规格：12mm深橡木饰面（WD-B01），包含木饰面门套\n4. 五金品种、规格：包括不限于暗铰链、磁碰、天地轴、门锁、拉手等完成此项工作的全部五金配件\n5. 未尽事宜详见设计图纸、图集、设计补充说明、招标文件、政府相关文件及规范等其它资料，满足验收要求","m2",9.12,null,{"v":0,"d":"0.00"}]
[73,"7#","工程名称：7#-公区","1","010801001001","木质门","1. 部位：电梯厅二等\n2. 门扇基层材料种类、规格：成品门芯板\n3. 面层材料种类、规格：12mm深橡木饰面（WD-B01），包含木饰面门套+阻燃板基层\n4. 五金品种、规格：包括不限于暗铰链、磁碰、天地轴、门锁、拉手等完成此项工作的全部五金配件\n5. 未尽事宜详见设计图纸、图集、设计补充说明、招标文件、政府相关文件及规范等其它资料，满足验收要求","1. 部位：电梯厅二等\n2. 门扇基层材料种类、规格：成品门芯板\n3. 面层材料种类、规格：12mm深橡木饰面（WD-B01），包含木饰面门套\n4. 五金品种、规格：包括不限于暗铰链、磁碰、天地轴、门锁、拉手等完成此项工作的全部五金配件\n5. 未尽事宜详见设计图纸、图集、设计补充说明、招标文件、政府相关文件及规范等其它资料，满足验收要求","m2",1.86,null,{"v":0,"d":"0.00"}]
[74,"7#","工程名称：7#-公区","2","010801001002","木质门","1. 部位：行李间、值班、值班休息室等\n2. 门扇基层材料种类、规格：成品门芯板\n3. 面层材料种类、规格：12mm深橡木饰面（WD-B01），皮革硬包（12mm雪弗板内衬板）（UP-B02）+仿铜不锈钢嵌条，包含木饰面门套+阻燃板基层\n4. 五金品种、规格：包括不限于暗铰链、磁碰、天地轴、门锁、拉手等完成此项工作的全部五金配件\n5. 未尽事宜详见设计图纸、图集、设计补充说明、招标文件、政府相关文件及规范等其它资料，满足验收要求","1. 部位：行李间、值班、值班休息室等\n2. 门扇基层材料种类、规格：成品门芯板\n3. 面层材料种类、规格：12mm深橡木饰面（WD-B01），皮革硬包（12mm雪弗板内衬板）（UP-B02）+仿铜不锈钢嵌条，包含木饰面门套\n4. 五金品种、规格：包括不限于暗铰链、磁碰、天地轴、门锁、拉手等完成此项工作的全部五金配件\n5. 未尽事宜详见设计图纸、图集、设计补充说明、招标文件、政府相关文件及规范等其它资料，满足验收要求","m2",5.66,null,{"v":0,"d":"0.00"}]
[75,"7#","工程名称：7#-公区","21","011207001004","墙面装饰板","1．部位：电梯厅等\n2．龙骨材料种类、规格：热镀锌钢龙骨（不分规格型号，投标人综合考虑）\n3．基层材料种类、规格：双层12mm阻燃夹板\n4. 面层材料品种、规格、颜色：12mm深橡木饰面（WD-B01）\n5．防护材料种类：所有装修用木基层均应进行防火、防腐处理\n6. 施工时面层颜色、样式由甲方和设计单位确认选样，投标人综合考虑报价，加工、切割、折边、损耗等不另计，中标后综合单价不予调整\n7．未尽事宜详见设计图纸、图集、设计补充说明、招标文件、政府相关文件及规范等其它资料，满足验收要求","1．部位：电梯厅等\n4. 面层材料品种、规格、颜色：12mm深橡木饰面（WD-B01）\n5．防护材料种类：所有装修用木基层均应进行防火、防腐处理\n6. 施工时面层颜色、样式由甲方和设计单位确认选样，投标人综合考虑报价，加工、切割、折边、损耗等不另计，中标后综合单价不予调整\n7．未尽事宜详见设计图纸、图集、设计补充说明、招标文件、政府相关文件及规范等其它资料，满足验收要求","m2",26.66,null,{"v":0,"d":"0.00"}]
[76,"7#","工程名称：7#-公区","22","011207001005","墙面装饰板","1．部位：走道等\n2．龙骨材料种类、规格：轻钢龙骨，规格尺寸满足现场和规范要求\n3．基层材料种类、规格：12mm阻燃夹板\n4. 面层材料品种、规格、颜色：12mm暖白色喷漆木饰面（WD-B06）\n5．防护材料种类：所有装修用木基层均应进行防火、防腐处理\n6. 施工时面层颜色、样式由甲方和设计单位确认选样，投标人综合考虑报价，加工、切割、折边、损耗等不另计，中标后综合单价不予调整\n7．未尽事宜详见设计图纸、图集、设计补充说明、招标文件、政府相关文件及规范等其它资料，满足验收要求","1．部位：走道等\n4. 面层材料品种、规格、颜色：12mm暖白色喷漆木饰面（WD-B06）\n5．防护材料种类：所有装修用木基层均应进行防火、防腐处理\n6. 施工时面层颜色、样式由甲方和设计单位确认选样，投标人综合考虑报价，加工、切割、折边、损耗等不另计，中标后综合单价不予调整\n7．未尽事宜详见设计图纸、图集、设计补充说明、招标文件、政府相关文件及规范等其它资料，满足验收要求","m2",73.36,null,{"v":0,"d":"0.00"}]
[77,"7#","工程名称：7#-公区","23","011207001006","墙面装饰板","1．部位：走道等\n2．龙骨材料种类、规格：轻钢龙骨，规格尺寸满足现场和规范要求\n3．基层材料种类、规格：12mm阻燃夹板\n4. 面层材料品种、规格、颜色：12mm拉槽暖白色喷漆木饰面（WD-B06A）\n5．防护材料种类：所有装修用木基层均应进行防火、防腐处理\n6. 施工时面层颜色、样式由甲方和设计单位确认选样，投标人综合考虑报价，加工、切割、折边、损耗等不另计，中标后综合单价不予调整\n7．未尽事宜详见设计图纸、图集、设计补充说明、招标文件、政府相关文件及规范等其它资料，满足验收要求","1．部位：走道等\n4. 面层材料品种、规格、颜色：12mm拉槽暖白色喷漆木饰面（WD-B06A）\n5．防护材料种类：所有装修用木基层均应进行防火、防腐处理\n6. 施工时面层颜色、样式由甲方和设计单位确认选样，投标人综合考虑报价，加工、切割、折边、损耗等不另计，中标后综合单价不予调整\n7．未尽事宜详见设计图纸、图集、设计补充说明、招标文件、政府相关文件及规范等其它资料，满足验收要求","m2",31.59,null,{"v":0,"d":"0.00"}]
[78,"7#","工程名称：7#-公区","24","011207001007","墙面装饰板","1．部位：电梯厅\n2．龙骨材料种类、规格：轻钢龙骨，规格尺寸满足现场和规范要求\n3．基层材料种类、规格：12mm阻燃夹板\n4. 面层材料品种、规格、颜色：12mm中国红手扫漆饰面（WD-B05）\n5．防护材料种类：所有装修用木基层均应进行防火、防腐处理\n6. 施工时面层颜色、样式由甲方和设计单位确认选样，投标人综合考虑报价，加工、切割、折边、损耗等不另计，中标后综合单价不予调整\n7．未尽事宜详见设计图纸、图集、设计补充说明、招标文件、政府相关文件及规范等其它资料，满足验收要求","1．部位：电梯厅\n4. 面层材料品种、规格、颜色：12mm中国红手扫漆饰面（WD-B05）\n5．防护材料种类：所有装修用木基层均应进行防火、防腐处理\n6. 施工时面层颜色、样式由甲方和设计单位确认选样，投标人综合考虑报价，加工、切割、折边、损耗等不另计，中标后综合单价不予调整\n7．未尽事宜详见设计图纸、图集、设计补充说明、招标文件、政府相关文件及规范等其它资料，满足验收要求","m2",{"v":5.7,"d":"5.70"},null,{"v":0,"d":"0.00"}]
[79,"7#","工程名称：7#-公区","25","011207001008","墙面装饰板","1．部位：电梯厅\n2．龙骨材料种类、规格：轻钢龙骨，规格尺寸满足现场和规范要求\n3．基层材料种类、规格：12mm阻燃夹板\n4. 面层材料品种、规格、颜色：12mm黑色手扫漆饰面（WD-B05A）\n5．防护材料种类：所有装修用木基层均应进行防火、防腐处理\n6. 施工时面层颜色、样式由甲方和设计单位确认选样，投标人综合考虑报价，加工、切割、折边、损耗等不另计，中标后综合单价不予调整\n7．未尽事宜详见设计图纸、图集、设计补充说明、招标文件、政府相关文件及规范等其它资料，满足验收要求","1．部位：电梯厅\n4. 面层材料品种、规格、颜色：12mm黑色手扫漆饰面（WD-B05A）\n5．防护材料种类：所有装修用木基层均应进行防火、防腐处理\n6. 施工时面层颜色、样式由甲方和设计单位确认选样，投标人综合考虑报价，加工、切割、折边、损耗等不另计，中标后综合单价不予调整\n7．未尽事宜详见设计图纸、图集、设计补充说明、招标文件、政府相关文件及规范等其它资料，满足验收要求","m2",0.38,null,{"v":0,"d":"0.00"}]
[80,"7#","工程名称：7#-公区","26","011207001009","墙面装饰板","1．部位：电梯厅\n2．龙骨材料种类、规格：轻钢龙骨，规格尺寸满足现场和规范要求\n3．基层材料种类、规格：12mm阻燃夹板\n4. 面层材料品种、规格、颜色：实木线条黑色手扫漆饰面（WD-B05A）\n5．防护材料种类：所有装修用木基层均应进行防火、防腐处理\n6. 施工时面层颜色、样式由甲方和设计单位确认选样，投标人综合考虑报价，加工、切割、折边、损耗等不另计，中标后综合单价不予调整\n7．未尽事宜详见设计图纸、图集、设计补充说明、招标文件、政府相关文件及规范等其它资料，满足验收要求","1．部位：电梯厅\n4. 面层材料品种、规格、颜色：实木线条黑色手扫漆饰面（WD-B05A）\n5．防护材料种类：所有装修用木基层均应进行防火、防腐处理\n6. 施工时面层颜色、样式由甲方和设计单位确认选样，投标人综合考虑报价，加工、切割、折边、损耗等不另计，中标后综合单价不予调整\n7．未尽事宜详见设计图纸、图集、设计补充说明、招标文件、政府相关文件及规范等其它资料，满足验收要求","m2",3.12,null,{"v":0,"d":"0.00"}]
[81,"7#","工程名称：7#-公区","54","WB011501001001","服务台","1.部位：门厅\n2 台柜规格：长4800*高1100*宽1000mm\n3. 材料种类、规格：镀锌方管钢架、双层9mm阻燃夹板基层+12mm深橡木饰面（WD-B01）\n4. 外饰面：25mm巴洛克紫大理石（ST-B07）、瑞吉黑大理石（ST-B08）、1.2mm仿铜覆膜不锈钢踢脚（MT-B03）\n5. 台面材料、规格：25mm巴洛克紫大理石（ST-B07）、瑞吉黑大理石（ST-B08）\n6. 五金种类、规格：含所有配套不锈钢五金件\n7. 施工时面层颜色、样式由甲方和设计单位确认选样，加工、排版损耗等不另计，投标人综合考虑报价，中标后综合单价不予调整\n8. 未尽事宜详见设计图纸、图集、设计补充说明、招标文件、政府相关文件及规范等其它资料，满足验收要求","1.部位：门厅\n2 台柜规格：长4800*高1100*宽1000mm\n3. 材料种类、规格：12mm深橡木饰面（WD-B01）\n6. 五金种类、规格：含所有配套不锈钢五金件\n7. 施工时面层颜色、样式由甲方和设计单位确认选样，加工、排版损耗等不另计，投标人综合考虑报价，中标后综合单价不予调整\n8. 未尽事宜详见设计图纸、图集、设计补充说明、招标文件、政府相关文件及规范等其它资料，满足验收要求","m",{"v":4.8,"d":"4.80"},null,{"v":0,"d":"0.00"}]
[82,"7#","工程名称：7#-公区","60","010801001003","木质门","1. 部位：卫生间、茶水间等\n2. 门扇基层材料种类、规格：成品门芯板\n3. 面层材料种类、规格：12mm深橡木饰面（WD-B01），包含木饰面门套+阻燃板基层\n4. 五金品种、规格：包括不限于暗铰链、磁碰、天地轴、门锁、拉手等完成此项工作的全部五金配件\n5. 未尽事宜详见设计图纸、图集、设计补充说明、招标文件、政府相关文件及规范等其它资料，满足验收要求","1. 部位：卫生间、茶水间等\n2. 门扇基层材料种类、规格：成品门芯板\n3. 面层材料种类、规格：12mm深橡木饰面（WD-B01），包含木饰面门套\n4. 五金品种、规格：包括不限于暗铰链、磁碰、天地轴、门锁、拉手等完成此项工作的全部五金配件\n5. 未尽事宜详见设计图纸、图集、设计补充说明、招标文件、政府相关文件及规范等其它资料，满足验收要求","m2",48.26,null,{"v":0,"d":"0.00"}]
[83,"7#","工程名称：7#-公区","61","010801001004","木质门","1. 部位：备餐间、茶水间等\n2. 门扇基层材料种类、规格：成品门芯板\n3. 面层材料种类、规格：12mm深橡木饰面（WD-B01），皮革硬包（12mm雪弗板内衬板）（UP-B02）+仿铜不锈钢嵌条，包含木饰面门套+阻燃板基层\n4. 五金品种、规格：包括不限于暗铰链、磁碰、天地轴、门锁、拉手等完成此项工作的全部五金配件\n5. 未尽事宜详见设计图纸、图集、设计补充说明、招标文件、政府相关文件及规范等其它资料，满足验收要求","1. 部位：备餐间、茶水间等\n2. 门扇基层材料种类、规格：成品门芯板\n3. 面层材料种类、规格：12mm深橡木饰面（WD-B01），皮革硬包（12mm雪弗板内衬板）（UP-B02）+仿铜不锈钢嵌条，包含木饰面门套\n4. 五金品种、规格：包括不限于暗铰链、磁碰、天地轴、门锁、拉手等完成此项工作的全部五金配件\n5. 未尽事宜详见设计图纸、图集、设计补充说明、招标文件、政府相关文件及规范等其它资料，满足验收要求","m2",20.75,null,{"v":0,"d":"0.00"}]
[84,"7#","工程名称：7#-公区","93","011207001013","墙面装饰板","1．部位：餐厅、会议、会见、活动室等\n2．龙骨材料种类、规格：热镀锌钢龙骨（不分规格型号，投标人综合考虑），内塞50mm厚岩棉(容重80kg/m3)\n3．基层材料种类、规格：12mm阻燃夹板\n4. 面层材料品种、规格、颜色：12mm深橡木饰面（WD-B01）\n5．防护材料种类：所有装修用木基层均应进行防火、防腐处理\n6. 施工时面层颜色、样式由甲方和设计单位确认选样，投标人综合考虑报价，加工、切割、折边、损耗等不另计，中标后综合单价不予调整\n7．未尽事宜详见设计图纸、图集、设计补充说明、招标文件、政府相关文件及规范等其它资料，满足验收要求","1．部位：餐厅、会议、会见、活动室等\n4. 面层材料品种、规格、颜色：12mm深橡木饰面（WD-B01）\n5．防护材料种类：所有装修用木基层均应进行防火、防腐处理\n6. 施工时面层颜色、样式由甲方和设计单位确认选样，投标人综合考虑报价，加工、切割、折边、损耗等不另计，中标后综合单价不予调整\n7．未尽事宜详见设计图纸、图集、设计补充说明、招标文件、政府相关文件及规范等其它资料，满足验收要求","m2",1272.47,null,{"v":0,"d":"0.00"}]
[85,"7#","工程名称：7#-公区","94","011207001014","墙面装饰板","1．部位：会议室等\n2．龙骨材料种类、规格：轻钢龙骨，规格尺寸满足现场和规范要求，内塞50mm厚岩棉(容重80kg/m3)\n3．基层材料种类、规格：12mm阻燃夹板\n4. 面层材料品种、规格、颜色：造型15mm宽x10mm\n深/22mm，深橡木饰面（格栅）（WD-B01A）\n5．防护材料种类：所有装修用木基层均应进行防火、防腐处理\n6. 施工时面层颜色、样式由甲方和设计单位确认选样，投标人综合考虑报价，加工、切割、折边、损耗等不另计，中标后综合单价不予调整\n7．未尽事宜详见设计图纸、图集、设计补充说明、招标文件、政府相关文件及规范等其它资料，满足验收要求","1．部位：会议室等\n4. 面层材料品种、规格、颜色：造型15mm宽x10mm\n深/22mm，深橡木饰面（格栅）（WD-B01A）\n5．防护材料种类：所有装修用木基层均应进行防火、防腐处理\n6. 施工时面层颜色、样式由甲方和设计单位确认选样，投标人综合考虑报价，加工、切割、折边、损耗等不另计，中标后综合单价不予调整\n7．未尽事宜详见设计图纸、图集、设计补充说明、招标文件、政府相关文件及规范等其它资料，满足验收要求","m2",11.94,null,{"v":0,"d":"0.00"}]
[86,"7#","工程名称：7#-公区","95","011207001015","墙面装饰板","1．部位：休息室、会见室等\n2．龙骨材料种类、规格：轻钢龙骨，规格尺寸满足现场和规范要求，内塞50mm厚岩棉(容重80kg/m3)\n3．基层材料种类、规格：12mm阻燃夹板\n4. 面层材料品种、规格、颜色：12mm白色手扫漆饰面（WD-B04）\n5．防护材料种类：所有装修用木基层均应进行防火、防腐处理\n6. 施工时面层颜色、样式由甲方和设计单位确认选样，投标人综合考虑报价，加工、切割、折边、损耗等不另计，中标后综合单价不予调整\n7．未尽事宜详见设计图纸、图集、设计补充说明、招标文件、政府相关文件及规范等其它资料，满足验收要求","1．部位：休息室、会见室等\n4. 面层材料品种、规格、颜色：12mm白色手扫漆饰面（WD-B04）\n5．防护材料种类：所有装修用木基层均应进行防火、防腐处理\n6. 施工时面层颜色、样式由甲方和设计单位确认选样，投标人综合考虑报价，加工、切割、折边、损耗等不另计，中标后综合单价不予调整\n7．未尽事宜详见设计图纸、图集、设计补充说明、招标文件、政府相关文件及规范等其它资料，满足验收要求","m2",40.32,null,{"v":0,"d":"0.00"}]
[87,"7#","工程名称：7#-公区","133","WB011501001004","吊柜","1. 部位：备餐间、茶水间\n2. 柜体尺寸：350mm宽\n3. 龙骨材料种类、规格：木龙骨+镀锌钢板预埋件固定\n4. 柜体材料种类、规格：12mm深橡木饰面（WD-B01），具体由柜体厂家二次深化\n5. 五金品种、规格：包括但不限于烟斗合页、弹簧铰链、拉手等所有五金\n6. 未尽事宜详见设计图纸、图集、设计补充说明、招标文件、政府相关文件及规范等其它资料，满足验收要求","1. 部位：备餐间、茶水间\n2. 柜体尺寸：350mm宽\n3. 龙骨材料种类、规格：木龙骨+镀锌钢板预埋件固定\n4. 柜体材料种类、规格：12mm深橡木饰面（WD-B01），具体由柜体厂家二次深化\n5. 五金品种、规格：包括但不限于烟斗合页、弹簧铰链、拉手等所有五金\n6. 未尽事宜详见设计图纸、图集、设计补充说明、招标文件、政府相关文件及规范等其它资料，满足验收要求","m2",15.23,null,{"v":0,"d":"0.00"}]
[88,"7#","工程名称：7#-公区","134","WB011501001005","地柜","1. 部位：备餐间、茶水间\n2. 柜体尺寸：600*850mm\n3. 龙骨、基层材料种类、规格：木龙骨+18mm阻燃夹板\n4. 面层材料品种、规格、颜色：25mm巴洛克紫大理石台面（ST-B07）、深橡木饰面柜体、层板（WD-B01）等\n5. 五金品种、规格：包括但不限于烟斗合页、弹簧铰链、拉手等所有五金\n6. 未尽事宜详见设计图纸、图集、设计补充说明、招标文件、政府相关文件及规范等其它资料，满足验收要求","1. 部位：备餐间、茶水间\n2. 柜体尺寸：600*850mm\n3. 龙骨、基层材料种类、规格：木龙骨+18mm阻燃夹板\n4. 面层材料品种、规格、颜色：25mm巴洛克紫大理石台面（ST-B07）、深橡木饰面柜体、层板（WD-B01）等\n5. 五金品种、规格：包括但不限于烟斗合页、弹簧铰链、拉手等所有五金\n6. 未尽事宜详见设计图纸、图集、设计补充说明、招标文件、政府相关文件及规范等其它资料，满足验收要求","m",14.63,null,{"v":0,"d":"0.00"}]
[89,"7#","工程名称：7#-公区","135","WB011501001006","衣柜","1．部位：会议室二\n2．规格：650mm宽\n3．龙骨材料种类、规格：热镀锌钢龙骨（不分规格型号，投标人综合考虑）、30*30mm木方(阻燃处理)\n4．基层板材料种类、规格：15mm阻燃夹板等基层类型及厚度综合考虑\n5．材料种类：12mm深橡木饰面（WD-B01）、抽屉柜、不锈钢门把手、不锈钢踢脚线等\n6．五金种类、规格：单价包含五金合页、抽屉滑轨、阻尼隔振胶垫、暗藏灯槽等\n7．按照立面投影面积计算\n8．防护材料种类：所有装修用木基层均应进行防火、防腐处理\n9．施工时面层颜色、样式由甲方和设计单位确认选样，加工、排版损耗等不另计，投标人综合考虑报价，中标后综合单价不予调整\n10．未尽事宜详见设计图纸、图集、设计补充说明、招标文件、政府相关文件及规范等其它资料，满足验收要求","1．部位：会议室二\n2．规格：650mm宽\n5．材料种类：12mm深橡木饰面（WD-B01）、抽屉柜、不锈钢门把手\n6．五金种类、规格：单价包含五金合页、抽屉滑轨、阻尼隔振胶垫、暗藏灯槽等\n7．按照立面投影面积计算\n8．防护材料种类：所有装修用木基层均应进行防火、防腐处理\n9．施工时面层颜色、样式由甲方和设计单位确认选样，加工、排版损耗等不另计，投标人综合考虑报价，中标后综合单价不予调整\n10．未尽事宜详见设计图纸、图集、设计补充说明、招标文件、政府相关文件及规范等其它资料，满足验收要求","m2",9.49,null,{"v":0,"d":"0.00"}]
[90,"7#","工程名称：7#-公区","136","WB011501001007","设备柜","1．部位：会议室二\n2．规格：650mm宽\n3．龙骨材料种类、规格：热镀锌钢龙骨（不分规格型号，投标人综合考虑）、30*30mm木方(阻燃处理)\n4．基层板材料种类、规格：15mm阻燃夹板等基层类型及厚度综合考虑\n5．材料种类：12mm深橡木饰面（WD-B01）、抽屉柜、不锈钢门把手、不锈钢踢脚线等\n6．五金种类、规格：单价包含五金合页、抽屉滑轨、阻尼隔振胶垫、暗藏灯槽等\n7．按照立面投影面积计算\n8．防护材料种类：所有装修用木基层均应进行防火、防腐处理\n9．施工时面层颜色、样式由甲方和设计单位确认选样，加工、排版损耗等不另计，投标人综合考虑报价，中标后综合单价不予调整\n10．未尽事宜详见设计图纸、图集、设计补充说明、招标文件、政府相关文件及规范等其它资料，满足验收要求","1．部位：会议室二\n2．规格：650mm宽\n5．材料种类：12mm深橡木饰面（WD-B01）、抽屉柜、不锈钢门把手\n6．五金种类、规格：单价包含五金合页、抽屉滑轨、阻尼隔振胶垫、暗藏灯槽等\n7．按照立面投影面积计算\n8．防护材料种类：所有装修用木基层均应进行防火、防腐处理\n9．施工时面层颜色、样式由甲方和设计单位确认选样，加工、排版损耗等不另计，投标人综合考虑报价，中标后综合单价不予调整\n10．未尽事宜详见设计图纸、图集、设计补充说明、招标文件、政府相关文件及规范等其它资料，满足验收要求","m2",9.49,null,{"v":0,"d":"0.00"}]
[91,"7#","工程名称：7#-公区","137","WB011501001008","衣柜","1．部位：餐厅等\n2．规格：600mm宽\n3．龙骨材料种类、规格：热镀锌钢龙骨（不分规格型号，投标人综合考虑）、30*30mm木方(阻燃处理)\n4．基层板材料种类、规格：15mm阻燃夹板等基层类型及厚度综合考虑\n5．材料种类：12mm深橡木饰面（WD-B01）、抽屉柜、不锈钢门把手、不锈钢踢脚线等\n6．五金种类、规格：单价包含五金合页、抽屉滑轨、阻尼隔振胶垫、暗藏灯槽等\n7．按照立面投影面积计算\n8．防护材料种类：所有装修用木基层均应进行防火、防腐处理\n9．施工时面层颜色、样式由甲方和设计单位确认选样，加工、排版损耗等不另计，投标人综合考虑报价，中标后综合单价不予调整\n10．未尽事宜详见设计图纸、图集、设计补充说明、招标文件、政府相关文件及规范等其它资料，满足验收要求","1．部位：餐厅等\n2．规格：600mm宽\n5．材料种类：12mm深橡木饰面（WD-B01）、抽屉柜、不锈钢门把手\n6．五金种类、规格：单价包含五金合页、抽屉滑轨、阻尼隔振胶垫、暗藏灯槽等\n7．按照立面投影面积计算\n8．防护材料种类：所有装修用木基层均应进行防火、防腐处理\n9．施工时面层颜色、样式由甲方和设计单位确认选样，加工、排版损耗等不另计，投标人综合考虑报价，中标后综合单价不予调整\n10．未尽事宜详见设计图纸、图集、设计补充说明、招标文件、政府相关文件及规范等其它资料，满足验收要求","m2",8.18,null,{"v":0,"d":"0.00"}]
[92,"7#","工程名称：7#-公区","139","WB011501001009","陈列柜","1. 部位：活动室等\n2. 龙骨材料种类、规格：热镀锌钢龙骨（不分规格型号，投标人综合考虑） 局部阻燃木方龙骨\n3. 基层材料种类、规格：12mm阻燃夹板基层，局部多层\n4. 面层材料种类、规格：橡木饰面陈列柜（WD-B01），局部竹编饰面门板（WD-B07），局部灯槽成型，25mm巴洛克紫大理石台面(ST-B07）\n5. 含门铰等五金件\n6．按照立面投影面积计算\n7. 防护材料种类：所有装修用木基层均应进行防火、防腐处理\n8. 施工时面层颜色、样式由甲方和设计单位确认选样，投标人综合考虑报价，加工、切割、折边、损耗等不另计，中标后综合单价不予调整\n9. 未尽事宜详见设计图纸、图集、设计补充说明、招标文件、政府相关文件及规范等其它资料，满足验收要求","1. 部位：活动室等\n4. 面层材料种类、规格：橡木饰面陈列柜（WD-B01），局部竹编饰面门板（WD-B07），局部灯槽成型，25mm巴洛克紫大理石台面(ST-B07）\n5. 含门铰等五金件\n6．按照立面投影面积计算\n7. 防护材料种类：所有装修用木基层均应进行防火、防腐处理\n8. 施工时面层颜色、样式由甲方和设计单位确认选样，投标人综合考虑报价，加工、切割、折边、损耗等不另计，中标后综合单价不予调整\n9. 未尽事宜详见设计图纸、图集、设计补充说明、招标文件、政府相关文件及规范等其它资料，满足验收要求","m2",{"v":22.6,"d":"22.60"},null,{"v":0,"d":"0.00"}]
[93,"7#","工程名称：7#-公区","142","011502002001","木质装饰线","1．部位：会见室收边、嵌条\n2．嵌条材料品种、规格、颜色：30*30mm橡木线条(WD-B01)\n3．施工时面层颜色、样式由甲方和设计单位确认选样，投标人综合考虑报价，加工、切割、折边、损耗等不另计，中标后综合单价不予调整\n4．未尽事宜详见设计图纸、图集、设计补充说明、招标文件、政府相关文件及规范等其它资料，满足验收要求。","1．部位：会见室收边、嵌条\n2．嵌条材料品种、规格、颜色：30*30mm橡木线条(WD-B01)\n3．施工时面层颜色、样式由甲方和设计单位确认选样，投标人综合考虑报价，加工、切割、折边、损耗等不另计，中标后综合单价不予调整\n4．未尽事宜详见设计图纸、图集、设计补充说明、招标文件、政府相关文件及规范等其它资料，满足验收要求。","m",{"v":13.4,"d":"13.40"},null,{"v":0,"d":"0.00"}]
[94,"7#","工程名称：7#-公区","143","011502002002","木质装饰线","1．部位：休息室、会见室收边、嵌条\n2．嵌条材料品种、规格、颜色：50*12mm手扫漆木线条(WD-B04)\n3．施工时面层颜色、样式由甲方和设计单位确认选样，投标人综合考虑报价，加工、切割、折边、损耗等不另计，中标后综合单价不予调整\n4．未尽事宜详见设计图纸、图集、设计补充说明、招标文件、政府相关文件及规范等其它资料，满足验收要求。","1．部位：休息室、会见室收边、嵌条\n2．嵌条材料品种、规格、颜色：50*12mm手扫漆木线条(WD-B04)\n3．施工时面层颜色、样式由甲方和设计单位确认选样，投标人综合考虑报价，加工、切割、折边、损耗等不另计，中标后综合单价不予调整\n4．未尽事宜详见设计图纸、图集、设计补充说明、招标文件、政府相关文件及规范等其它资料，满足验收要求。","m",485.61,null,{"v":0,"d":"0.00"}]
[95,"7#","工程名称：7#-公区","144","011502002003","木质装饰线","1．部位：活动室收边、嵌条\n2．嵌条材料品种、规格、颜色：165*45mm橡木线条(WD-B01)\n3．施工时面层颜色、样式由甲方和设计单位确认选样，投标人综合考虑报价，加工、切割、折边、损耗等不另计，中标后综合单价不予调整\n4．未尽事宜详见设计图纸、图集、设计补充说明、招标文件、政府相关文件及规范等其它资料，满足验收要求。","1．部位：活动室收边、嵌条\n2．嵌条材料品种、规格、颜色：165*45mm橡木线条(WD-B01)\n3．施工时面层颜色、样式由甲方和设计单位确认选样，投标人综合考虑报价，加工、切割、折边、损耗等不另计，中标后综合单价不予调整\n4．未尽事宜详见设计图纸、图集、设计补充说明、招标文件、政府相关文件及规范等其它资料，满足验收要求。","m",51.54,null,{"v":0,"d":"0.00"}]
[96,"7#","工程名称：7#-公区","147","010801001005","木质门","1. 部位：卫生间等\n2. 门扇基层材料种类、规格：成品门芯板\n3. 面层材料种类、规格：12mm深橡木饰面（WD-B01），包含木饰面门套+阻燃板基层\n4. 五金品种、规格：包括不限于暗铰链、磁碰、天地轴、门锁、拉手等完成此项工作的全部五金配件\n5. 未尽事宜详见设计图纸、图集、设计补充说明、招标文件、政府相关文件及规范等其它资料，满足验收要求","1. 部位：卫生间等\n2. 门扇基层材料种类、规格：成品门芯板\n3. 面层材料种类、规格：12mm深橡木饰面（WD-B01），包含木饰面门套\n4. 五金品种、规格：包括不限于暗铰链、磁碰、天地轴、门锁、拉手等完成此项工作的全部五金配件\n5. 未尽事宜详见设计图纸、图集、设计补充说明、招标文件、政府相关文件及规范等其它资料，满足验收要求","m2",3.71,null,{"v":0,"d":"0.00"}]
[97,"7#","工程名称：7#-公区","148","WB010801004005","装饰门扇安装","1. 部位：残卫移门(满足自动关闭及防烟性能）\n2. 门扇龙骨材料种类、规格：成品门芯板\n3. 面层材料种类、规格：12mm深橡木饰面（WD-B01），不锈钢门框+四周热镀锌方通固定\n4. 五金品种、规格：包括不限于移门轨道、暗铰链、磁碰、天地轴、隐藏拉手等完成此项工作的全部五金配件\n5. 未尽事宜详见设计图纸、图集、设计补充说明、招标文件、政府相关文件及规范等其它资料，满足验收要求","1. 部位：残卫移门(满足自动关闭及防烟性能）\n2. 门扇龙骨材料种类、规格：成品门芯板\n3. 面层材料种类、规格：12mm深橡木饰面（WD-B01），不锈钢门框+四周热镀锌方通固定\n4. 五金品种、规格：包括不限于移门轨道、暗铰链、磁碰、天地轴、隐藏拉手等完成此项工作的全部五金配件\n5. 未尽事宜详见设计图纸、图集、设计补充说明、招标文件、政府相关文件及规范等其它资料，满足验收要求","m2",{"v":2.8,"d":"2.80"},null,{"v":0,"d":"0.00"}]
[98,"7#","工程名称：7#-公区","157","011207001026","墙面装饰板","1．部位：卫生间等\n2．基层材料种类、规格：12mm阻燃夹板\n3. 面层材料品种、规格、颜色：10mm仿木纹防火板（WD-B08）\n4．防护材料种类：所有装修用木基层均应进行防火、防腐处理\n5. 施工时面层颜色、样式由甲方和设计单位确认选样，投标人综合考虑报价，加工、切割、折边、损耗等不另计，中标后综合单价不予调整\n6．未尽事宜详见设计图纸、图集、设计补充说明、招标文件、政府相关文件及规范等其它资料，满足验收要求","1．部位：卫生间等\n3. 面层材料品种、规格、颜色：10mm仿木纹防火板（WD-B08）\n4．防护材料种类：所有装修用木基层均应进行防火、防腐处理\n5. 施工时面层颜色、样式由甲方和设计单位确认选样，投标人综合考虑报价，加工、切割、折边、损耗等不另计，中标后综合单价不予调整\n6．未尽事宜详见设计图纸、图集、设计补充说明、招标文件、政府相关文件及规范等其它资料，满足验收要求","m2",7.26,null,{"v":0,"d":"0.00"}]
[99,"7#","工程名称：7#-公区","167","WB011501001011","洗手台+柜体","1. 部位：公共卫生间\n2. 规格尺寸：台面宽600*高300mm\n3. 龙骨材料种类、规格：热镀锌钢龙骨（不分规格型号，投标人综合考虑）\n4. 基层材料种类、规格：12mm硅酸钙板\n5. 面层材料品种、规格、颜色：18mm雪花白大理石（ST-B10）台面，10mm仿木纹防火板饰面(WD-B08）、1.2mm仿铜不锈钢（MT-B04）+防火板饰面柜体、50mm高不锈钢踢脚线等\n6. 所有石材材料在施工前须做六面防护处理,石材结晶，以保证防水、防腐、防污、防油\n7. 施工时面层颜色、样式由甲方和设计单位确认选样，倒角，磨边、切割等加工费不另计，投标人综合考虑报价，中标后综合单价不予调整\n8. 未尽事宜详见设计图纸、图集、设计补充说明、招标文件、政府相关文件及规范等其它资料，满足验收要求","1. 部位：公共卫生间\n2. 规格尺寸：台面宽600*高300mm\n5. 面层材料品种、规格、颜色：10mm仿木纹防火板饰面(WD-B08）、1.2mm仿铜不锈钢（MT-B04）+防火板饰面柜体\n7. 施工时面层颜色、样式由甲方和设计单位确认选样，倒角，磨边、切割等加工费不另计，投标人综合考虑报价，中标后综合单价不予调整\n8. 未尽事宜详见设计图纸、图集、设计补充说明、招标文件、政府相关文件及规范等其它资料，满足验收要求","m",4.36,null,{"v":0,"d":"0.00"}]
[100,"7#","工程名称：7#-公区","254","WB010801004006","装饰门扇安装","1.工程部位：后场房间等\n2.门扇龙骨、基层材质种类、规格：成名门芯板+30mm细木工板+四周30*30mm热镀锌方通+12mm阻燃夹板+12mm雪弗板\n3.门套材料种类、规格：15mm阻燃夹板+9mm阻燃夹板+橡木饰面（WD-B01）\n4.面层材料品种、规格、颜色：正面皮革硬包（UP-B02）1.2mm仿铜不锈钢包边（MT-B04）+10mm仿铜不锈钢嵌条（MT-B04），背面橡木饰面（WD-B01）\n5.五金品种、规格：包含但不限于成品金属门把手(选样)、成品五金暗铰链(选型一侧三副)、消音胶条等完成此项工作的全部五金配件\n6.施工时面层颜色、样式由甲方和设计单位确认选样，投标人综合考虑报价，加工、损耗等不另计，中标后综合单价不予调整\n7.未尽事宜详见设计图纸、图集、设计补充说明、招标文件、政府相关文件及规范等其它资料，满足验收要求","1.工程部位：后场房间等\n2.门扇龙骨、基层材质种类、规格：成名门芯板+30mm细木工板+四周30*30mm热镀锌方通+12mm阻燃夹板+12mm雪弗板\n3.门套材料种类、规格：15mm阻燃夹板+9mm阻燃夹板+橡木饰面（WD-B01）\n4.面层材料品种、规格、颜色：正面皮革硬包（UP-B02）1.2mm仿铜不锈钢包边（MT-B04）+10mm仿铜不锈钢嵌条（MT-B04），背面橡木饰面（WD-B01）\n5.五金品种、规格：包含但不限于成品金属门把手(选样)、成品五金暗铰链(选型一侧三副)、消音胶条等完成此项工作的全部五金配件\n6.施工时面层颜色、样式由甲方和设计单位确认选样，投标人综合考虑报价，加工、损耗等不另计，中标后综合单价不予调整\n7.未尽事宜详见设计图纸、图集、设计补充说明、招标文件、政府相关文件及规范等其它资料，满足验收要求","m2",10.09,null,{"v":0,"d":"0.00"}]
[101,"7#","工程名称：7#-公区","262","WB010801004007","装饰门扇安装","1. 部位：木饰面门(GM1524）\n2. 门扇龙骨材料种类、规格：成品门芯板\n3. 面层材料种类、规格：12mm深橡木饰面（（WD-B01）+玻璃观察窗+不锈钢护门板\n4. 门套基层、面层材料种类、规格：双层12mm阻燃夹板+12mm深橡木饰面（WD-B01）\n5. 五金品种、规格：包含但不限于成品五金暗铰链、成品金属门把手、门锁、闭门器等完成此项工作的全部五金配件\n6. 未尽事宜详见设计图纸、图集、设计补充说明、招标文件、政府相关文件及规范等其它资料，满足验收要求","1. 部位：木饰面门(GM1524）\n2. 门扇龙骨材料种类、规格：成品门芯板\n3. 面层材料种类、规格：12mm深橡木饰面（（WD-B01）+玻璃观察窗+不锈钢护门板\n4. 门套基层、面层材料种类、规格：双层12mm阻燃夹板+12mm深橡木饰面（WD-B01）\n5. 五金品种、规格：包含但不限于成品五金暗铰链、成品金属门把手、门锁、闭门器等完成此项工作的全部五金配件\n6. 未尽事宜详见设计图纸、图集、设计补充说明、招标文件、政府相关文件及规范等其它资料，满足验收要求","m2",{"v":14.4,"d":"14.40"},null,{"v":0,"d":"0.00"}]
[102,"7#","工程名称：7#-公区","284","011207001042","墙面装饰板","1. 部位：地下货梯厅墙裙\n2. 面层材料品种、规格、颜色：10mm厚淡灰色防火板墙裙\n3. 线条材料品种、规格、颜色：铝合金收边条收口\n4. 防护材料种类：所有装修用木材均应进行防火、防腐处理\n5. 施工时面层颜色、样式由甲方和设计单位确认选样，投标人综合考虑报价，加工、切割、折边、损耗等不另计，中标后综合单价不予调整\n6. 未尽事宜详见设计图纸、图集、设计补充说明、招标文件、政府相关文件及规范等其它资料，满足验收要求","1. 部位：地下货梯厅墙裙\n2. 面层材料品种、规格、颜色：10mm厚淡灰色防火板墙裙\n4. 防护材料种类：所有装修用木材均应进行防火、防腐处理\n5. 施工时面层颜色、样式由甲方和设计单位确认选样，投标人综合考虑报价，加工、切割、折边、损耗等不另计，中标后综合单价不予调整\n6. 未尽事宜详见设计图纸、图集、设计补充说明、招标文件、政府相关文件及规范等其它资料，满足验收要求","m2",{"v":54.6,"d":"54.60"},null,{"v":0,"d":"0.00"}]
["总价（元）",{"$nulls":10},{"$f":"SUM(L7:L104)","v":{"v":0,"d":"0.00"}}]